Workbook

Sheet A
A1: SCHEDULE A: PRELIMINARY AND GENERAL
A2: ITEM | B2: PAYMENT | C2: DESCRIPTION | D2: UNIT | E2: QTY | F2: RATE | G2: AMOUNT
B4: SANS 1200 A | C4: PRELIMINARY AND GENERAL
A6: A.1 | B6: 8.3 | C6: SCHEDULED FIXED - CHARGE AND VALUE-RELATED ITEMS
A8: A.1.1 | B8: 8.3.1 | C8: Contractual Requirements | D8: Sum | E8: 1.0
B10: 8.3.2 | C10: Establishment of facilities on the site
B12: 8.3.2.1 | C12: Facilities for Engineer
A14: A.1.2 | B14: PSA 8.3.2.1 a) | C14: a) Furnished Office (Air-Conditioned) | D14: Sum | E14: 1.0
A16: A.1.3 | B16: 8.3.2.1 | C16: b) Telephone | D16: Sum | E16: 1.0
A18: A.1.4 | B18: PSA 8.3.2.1 c) | C18: c) Nameboards (2 No.) | D18: Sum | E18: 1.0
B20: 8.3.2.2 | C20: Facilities required by Contractor
A22: A.1.5 | C22: a) Offices & Storage Sheds | D22: Sum | E22: 1.0
A24: A.1.6 | C24: c) Laboratories | D24: Sum | E24: 1.0
A26: A.1.7 | C26: d) Living Accommodation | D26: Sum | E26: 1.0
A28: A.1.8 | C28: e) Ablution & Latrine facilities | D28: Sum | E28: 1.0
A30: A.1.9 | C30: f) Tools & Equipment | D30: Sum | E30: 1.0
A32: A.1.10 | C32: g) Water Supplies, Electric Power & Communications | D32: Sum | E32: 1.0
A34: A.1.11 | C34: h) Dealing with Water | D34: Sum | E34: 1.0
A36: A.1.12 | C36: i) Access | D36: Sum | E36: 1.0
A38: A.1.13 | C38: j) Plant | D38: Sum | E38: 1.0
A43: CARRIED FORWARD:
A44: BROUGHT FORWARD:
A46: A.1.14 | B46: 8.3.3 | C46: Other Fixed Charge Obligations (List below)
A48: A.1.14.1 | C48: …............................................................................... | D48: Sum | E48: 1.0
A50: A.1.14.2 | C50: …............................................................................... | D50: Sum | E50: 1.0
A52: A.1.14.3 | C52: …............................................................................... | D52: Sum | E52: 1.0
A54: A.1.15 | B54: 8.3.4 | C54: Removal of site establishment | D54: Sum | E54: 1.0
A56: A.1.16 | B56: PS.9.7 | C56: Compliance with Environmental Management Programme (EMPr) | D56: Sum | E56: 1.0
A58: A.1.17 | B58: PS.10.5 | C58: Compliance with the OHS Act (1993, as amended) and the Construction Regulations (2014) | D58: Sum | E58: 1.0
A60: A.1.18 | B60: PS.14.3 | C60: Survey for & preparation of "As-Built" Drawings | D60: Sum | E60: 1.0
A62: A.1.19 | B62: PS.14.1 | C62: Setting out of works | D62: Sum | E62: 1.0
A64: A.1.20 | B64: PS.11 | C64: Site Security | D64: Sum | E64: 1.0
A66: A.1.21 | C66: Provision of 3 No. copies keys required to open all manholes, gates and doors | D66: Sum | E66: 1.0
A68: A.1.22 | C68: Identification of, and appointment of suitable CPG Contractors | D68: Sum | E68: 1.0
A70: A.1.23 | B70: C1.2.3.8.4.a) | C70: Contractor's cost for identification of, sourcing and appointment of a specialist Mechanical and Electrical Sub-Contractor | D70: Sum | E70: 1.0
A88: TOTAL SCHEDULE A.1 CARRIED FORWARD TO SUMMARY
A90: A.2 | B90: 8.4 | C90: TIME-RELATED ITEMS
A92: A.2.1 | B92: 8.4.1 | C92: Contractual Requirements | D92: Sum | E92: 1.0
B94: 8.4.2 | C94: Operation and Maintenance of Facilities on Site, for Duration of Construction, except where otherwise stated
B96: 8.4.2.1 | C96: Facilities for Engineer
A98: A.2.2 | B98: PSA 8.3.2.1 a) | C98: a) Furnished Office (Air Conditioned) | D98: Sum | E98: 1.0
A100: A.2.3 | B100: 8.3.2.1 | C100: b) Telephone | D100: Sum | E100: 1.0
B102: 8.4.2.2 | C102: Facilities required by Contractor
A104: A.2.4 | C104: a) Offices & Storage Sheds | D104: Sum | E104: 1.0
A106: A.2.5 | C106: c) Laboratories | D106: Sum | E106: 1.0
A108: A.2.6 | C108: d) Living Accommodation | D108: Sum | E108: 1.0
A110: A.2.7 | C110: e) Ablution & Latrine facilities | D110: Sum | E110: 1.0
A112: A.2.8 | C112: f) Tools & Equipment | D112: Sum | E112: 1.0
A114: A.2.9 | C114: g) Water Supplies, Electric Power & Communications | D114: Sum | E114: 1.0
A116: A.2.10 | C116: h) Dealing with Water | D116: Sum | E116: 1.0
A118: A.2.11 | C118: i) Access | D118: Sum | E118: 1.0
A120: A.2.12 | C120: j) Plant | D120: Sum | E120: 1.0
A122: A.2.13 | B122: 8.4.3 | C122: Supervision for the Duration of Construction | D122: Sum | E122: 1.0
A124: A.2.14 | B124: 8.4.4 | C124: Company & Head Office Overhead Costs for the Duration of the Contract | D124: Sum | E124: 1.0
A131: CARRIED FORWARD:
A132: BROUGHT FORWARD:
A134: A.2.15 | B134: 8.4.5 | C134: Other Time Related Obligations (List below)
A136: A.2.15.1 | C136: …...................................................................... | D136: Sum | E136: 1.0
A138: A.2.15.2 | C138: …...................................................................... | D138: Sum | E138: 1.0
A140: A.2.15.3 | C140: …...................................................................... | D140: Sum | E140: 1.0
A142: A.2.16 | B142: PS.8.3 | C142: Compliance with the OHS Act (1993, as amended) and the Construction Regulations (2014) | D142: Sum | E142: 1.0
A144: A.2.17 | B144: PS.7.3 | C144: Compliance with Environmental Management Programme | D144: Sum | E144: 1.0
A146: A.2.18 | C146: Supervision and training of CPG Contractors throughout the duration of construction | D146: Sum | E146: 1.0
A148: A.2.19 | B148: C1.2.3.8.4.b) | C148: Principal Contractor's supervision, facilitation, management and handling of Specialist Mechanical and Electrical Contractor for the duration of the Contract. | D148: Sum | E148: 1.0
A174: TOTAL SCHEDULE A.2 CARRIED FORWARD TO SUMMARY
A176: A.3 | B176: 8.5 | C176: SUMS STATED PROVISIONALLY BY ENGINEER
A178: A.3.1 | B178: C.1.2.3.1 | C178: Allowance for payment to Community Liaison Officer (CLO) | D178: Prov. Sum | E178: 1.0 | F178: =7500*15 -> 112,500 | G178: =ROUND(E178*F178,2) -> R 112,500.00
A180: A.3.2 | C180: Overheads and profit on item A.3.1 | D180: % | E180: =G178 -> 112,500.00
A182: A.3.3 | B182: PS.9.8 | C182: Allowance for Payment to Environmental Control Officer (ECO) | D182: Prov. Sum | E182: 1.0 | F182: =5000*15 -> 75,000 | G182: =ROUND(E182*F182,2) -> R 75,000.00
A184: A.3.4 | C184: Overheads and profit on item A.3.3 | D184: % | E184: =G182 -> 75,000.00
A186: A.3.5 | B186: PS.10.3 | C186: Allowance for additional site survey | D186: Prov. Sum | E186: 1.0 | F186: 125,000 | G186: =ROUND(E186*F186,2) -> R 125,000.00
A188: A.3.6 | B188: PS.10.3 | C188: Overheads and profit on item A.3.5 | D188: % | E188: =G186 -> 125,000.00
A190: A.3.7 | C190: Allowance for the design, supply, installation and commissioning of mechanical and electrical infrastructure required for the WWTW Upgrade | D190: PC Sum | E190: 1.0 | F190: =E192 -> 17,000,000 | G190: =ROUND(E190*F190,2) -> R 17,000,000.00
A192: A.3.8 | C192: Overheads and profit on item A.3.7 | D192: % | E192: 17,000,000.00
A194: A.3.9 | C194: Allowance for additional Testing performed by independent laboratory as required by Engineer | D194: Prov. Sum | E194: 1.0 | F194: 50,000 | G194: =ROUND(E194*F194,2) -> R 50,000.00
A196: A.3.10 | C196: Overheads and profit on item A.3.9 | D196: % | E196: =G194 -> 50,000.00
A198: A.3.11 | C198: Allowance for relocation of existing services | D198: Prov. Sum | E198: 1.0 | F198: 250,000 | G198: =ROUND(E198*F198,2) -> R 250,000.00
A200: A.3.12 | C200: Overheads and profit on item A.3.11 | D200: % | E200: =G198 -> 250,000.00
A202: A.3.13 | C202: Unforeseen ancillary Infrastructure | D202: Prov. Sum | E202: 1.0 | F202: 450,000 | G202: =ROUND(E202*F202,2) -> R 450,000.00
A204: A.3.14 | C204: Overheads and profit on item A.3.13 | D204: % | E204: =G202 -> 450,000.00
A206: A.3.15 | C206: Allowance for the inspection, structural repairs and/or waterproofing of the sludge digestor | D206: Prov. Sum | E206: 1.0 | F206: 250,000 | G206: =ROUND(E206*F206,2) -> R 250,000.00
A208: A.3.16 | C208: Overheads and profit on item A.3.15 | D208: % | E208: =G206 -> 250,000.00
A211: TOTAL SCHEDULE A.3 CARRIED FORWARD TO SUMMARY
A213: A.4 | C213: DAYWORKS
A215: A.4.1.1 | C215: TLB (50 kW Case 580 or similar) | D215: Hr | E215: 20.0
A217: A.4.1.2 | C217: Pedestrian vibrating roller (76) | D217: Hr | E217: 20.0
A219: A.4.1.3 | C219: Plate compactor | D219: Hr | E219: 60.0
A221: A.4.1.4 | C221: Compressor - 7m3/min | D221: Hr | E221: 80.0
A223: A.4.1.5 | C223: Bulldozer and Ripper (D6 or similar) | D223: Hr | E223: 30.0
A225: A.4.1.6 | C225: 10m3 Capacity Tipper Truck | D225: Hr | E225: 80.0
A227: A.4.1.7 | C227: 18m3 Capacity Water Tanker | D227: Hr | E227: 40.0
A229: A.4.1.8 | C229: Light Delivery Vehicle (1 Ton) | D229: km | E229: 350.0
A231: A.4.1.9 | C231: Flatbed Truck (capacity ± 5 Ton) | D231: km | E231: 350.0
A233: A.4.1.10 | C233: Welding Machine, 400 A | D233: hr | E233: 20.0
A235: A.4.1.11 | C235: 7.5 kVA Portable Diesel Generator | D235: hr | E235: 35.0
A237: A.4.1.12 | C237: 3 kW Submersible Pump & Hose | D237: hr | E237: 20.0
A239: A.4.2 | B239: 8.7 | C239: Labour
A241: A.4.2.1 | C241: Artisan (Skilled Labourers) | D241: Hr | E241: 60.0
A243: A.4.2.2 | C243: Foremen | D243: Hr | E243: 80.0
A245: A.4.2.3 | C245: Unskilled Labourers | D245: Hr | E245: 200.0
A247: A.4.2.4 | C247: Operators and Drivers | D247: Hr | E247: 100.0
A249: A.4.2.5 | C249: Coded Welder | D249: Hr | E249: 10.0
A263: TOTAL SCHEDULE A.4 CARRIED FORWARD TO SUMMARY
A265: A.5 | B265: 8.8 | C265: TEMPORARY WORKS
A267: A.5.1 | B267: PSA 8.8.1 | C267: Construct and maintain main access roads to works | D267: Sum | E267: 1.0
A269: A.5.2 | B269: PSA 8.8.2 | C269: Accomodation of Traffic | D269: Sum | E269: 1.0
A271: A.5.3 | B271: 8.8.4.c) | C271: Excavation by hand in soft material to expose underground services, backfill and compact in layers no greater than 300mm to 90% MOD AASHTO | D271: m3 | E271: 150.0
A305: TOTAL SCHEDULE A.5 CARRIED FORWARD TO SUMMARY

Sheet A-Sum
B1: SCHEDULE A: PRELIMINARY AND GENERAL
A2: SUMMARY OF SECTIONS - SCHEDULE A
A4: SECTION | B4: DESCRIPTION | F4: AMOUNT
A6: A.1 | B6: SCHEDULED FIXED - CHARGE AND VALUE-RELATED ITEMS
A8: A.2 | B8: TIME-RELATED ITEMS
A10: A.3 | B10: SUMS STATED PROVISIONALLY BY THE ENGINEER
A12: A.4 | B12: DAYWORKS
A14: A.5 | B14: TEMPORARY WORKS
A16: A | B16: TOTAL SCHEDULE A CARRIED FORWARD TO SUMMARY PAGE (A.1 + A.2 + A.3 + A.4 + A.5)

Sheet B
C1: SCHEDULE B: NEW INLET WORKS (CIVIL/STRUCTURAL)
A2: ITEM | B2: PAYMENT | C2: DESCRIPTION | D2: UNIT | E2: QTY | F2: RATE | G2: AMOUNT
A4: B.1 | C4: CONSTRUCTION OF NEW INLET WORKS AND DEMOLITION OF EXISTING
C6: Refer to Drg D34843-00C-134-01
A8: B.1.1 | B8: SANS 1200 C | C8: SITE CLEARANCE
A10: B.1.1.1 | B10: 8.2.1 | C10: Clear and Grub Site for Inlet Works | D10: m2 | E10: =E12 -> 57.5
A12: B.1.1.2 | B12: PSC 8.2.10 | C12: Removal of topsoil to nominal depth of 150mm, stockpile, maintain, reinstate or spread on site in designated areas | D12: m2 | E12: =(27.8)+(13.3)+(15)+(1.4) -> 57.5
A14: B.1.1.3 | B14: PSC 8.2.11 | C14: Clear, lift, load and dispose of materials (including broken pipework, skips, brickwork, concrete, manholes etc.) in the erosion gulley at existing inlet works at approved dump site. | D14: Sum | E14: 1.0
A16: B.1.1.4 | B16: PSC 8.2.14 | C16: Removal of precast concrete kerbing | D16: m | E16: 70.0
A18: B.1.1.5 | B18: PSC 8.2.15 | C18: Removal of asphalt surfacing of nominal 50mm thickness from existing access road | D18: m2 | E18: 180.0
A20: B.1.1.6 | B20: PSC 8.2.16 | C20: Demolish, handle and dispose of existing inlet works after the commissioning of the new inlet works | D20: Sum | E20: 1.0
A22: B.1.2 | B22: SANS 1200 D | C22: EARTHWORKS
A24: B.1.2.1 | B24: 8.3.3 | C24: a) Restricted Excavation in all materials for inlet works foundations up to a maximum depth of 5.0 m below ground level, use for embankment, spread on site in designated areas or backfill in layers no greater than 300mm thickness to 90% MOD AASHTO | D24: m3 | E24: =(27.8*2)+(13.3*4.5)+(15*2)+(1.4*3) -> 149.7
C26: b) Extra-Over Item B.1.2.1 above for:
A28: B.1.2.2 | C28: 1) Intermediate Excavation | D28: m3 | E28: =+ROUND(35%*E24,1) -> 52.4
A30: B.1.2.3 | C30: 2) Hard Rock Excavation | D30: m3 | E30: =+ROUND(5%*E24,1) -> 7.5
A32: B.1.2.4 | B32: PSD 8.3.7 | C32: Design, Supply and maintenance of Lateral Support for Deep Excavations for the duration of construction activities | D32: Sum | E32: 1.0
A37: TOTAL CARRIED FORWARD:
A38: TOTAL BROUGHT FORWARD:
A40: B.1.3 | B40: SANS 1200 G | C40: CONCRETE (STRUCTURAL)
B42: 8.2 | C42: Formwork
C44: Supply, erect, bind, handle and take down:
B46: 8.2.1 | C46: Rough Formwork:
A48: B.1.3.1 | C48: Vertical to Inlet Works Base Slabs, Foundations and Mass Concrete | D48: m2 | E48: =+ROUND(14.5*105%,1) -> 15.2
A50: B.1.3.2 | C50: Sloping to Underside of Vortex Degritter (Sacrificial) | D50: m2 | E50: =3.6*2*1.5 -> 10.8
B52: 8.2.2 | C52: Smooth Formwork
C54: Vertical To:
A56: B.1.3.3 | C56: Inlet Works Walls | D56: m2 | E56: =ROUND(115.6*115%,1) -> 132.9
A58: B.1.3.4 | C58: Sides of Vortex Degritter Walkway | D58: m2 | E58: =+(4*0.25*2)+(1*0.25*4) -> 3.0
A60: B.1.3.5 | C60: Inlet Works Base Slab Steps | D60: m2 | E60: =+ROUND((0.15*1)+(0.15*1.6*3)+(0.15*0.61),1) -> 1.0
C62: Horizontal To:
A64: B.1.3.6 | C64: Underside of Degrittor Walkway | D64: m2 | E64: =1*2*2 -> 4.0
C66: Sloping To:
A68: B.1.3.7 | C68: Vortex Degrittor Internal Walls | D68: m2 | E68: =(2.1*2)+(11.1*2) -> 26.4
B70: PSG 8.2.6 | C70: Box-Out Holes / Form Voids
A72: B.1.3.8 | C72: a) For DN300 S/S Inlet Puddle Pipe in 250mm thick RC Wall | D72: No. | E72: 2.0
A74: B.1.3.9 | C74: b) 80 x 50mm Recesses for Hand-Stops (Length Varies from 800mm to 1000mm) | D74: No. | E74: 10.0
A76: B.1.3.10 | C76: c) For DN350 S/S Inlet Puddle Pipe in 250mm thick RC Wall | D76: No. | E76: 1.0
A78: B.1.3.11 | C78: d) 250 x 80 Recesses for Channel Sluice Gate (Length Varies from 950mm to 1350mm) | D78: No. | E78: 6.0
A81: TOTAL CARRIED FORWARD:
A82: TOTAL BROUGHT FORWARD:
A84: B.1.3.12 | B84: PSG 8.2.8 | C84: Chamfers for Inlet Works Splitter Block as per Detail A on Drg D34843-00C-134-01 | D84: No. | E84: 4.0
B86: 8.3 | C86: Reinforcement
C88: Supply, Handle, Bend, Cut and Fix:
A90: B.1.3.13 | B90: 8.3.1 | C90: High Tensile Steel Bars | D90: t | E90: =+ROUND(SUM(E102)*0.18,1) -> 7.6
B92: 8.4 | C92: Concrete
C94: Supply, mix, place, compact and test:
B96: 8.4.3 | C96: Strength Concrete
A98: B.1.3.14 | C98: Class 15/19 MPa Concrete Blinding Layer Beneath Foundations | D98: m3 | E98: =+ROUND(3.8*115%,1) -> 4.4
A100: B.1.3.15 | C100: Class 20/19 MPa mass concrete layer beneath foundations | D100: m3 | E100: =+ROUND(4.1*2*110%,1) -> 9.0
A102: B.1.3.16 | C102: Class 35/19 MPa reinforced concrete for bases, walls, vortex degrittors, walkways, splitter block etc. | D102: m3 | E102: =+ROUND(38.3*110%,1) -> 42.1
B104: 8.4.4 | C104: Unformed Surface Finishes
A106: B.1.3.17 | C106: a) Wood-finish to top of walls and degritter walkways | D106: m2 | E106: =+ROUND(21.5+(2*2),1) -> 25.5
A108: B.1.3.18 | C108: b) Steel-floated finish to top of all base slabs | D108: m2 | E108: 36.5
B110: 8.5 | C110: Joints
C112: Base-to-wall Joints (Detail 5 on Drg D34843-00C-134-07):
A114: B.1.3.19 | C114: Supply & Install self-adhesive swellable waterstop (Kuniseal C31-DS by Xypex or similar approved) including for all surface preparation | D114: m | E114: =+ROUND(82.3*105%,1)-E132 -> 79.3
A125: TOTAL CARRIED FORWARD:
A126: TOTAL BROUGHT FORWARD:
C128: Base Slab Interface Joint (Detail 7 on Drg D34843-00C-134-07):
A130: B.1.3.20 | C130: Apply Wet-to-dry epoxy (Epidermix 345 or similar approved) to surface of the joint | D130: m | E130: =E132 -> 7.1
A132: B.1.3.21 | C132: Supply & Install self-adhesive swellable waterstop (Kuniseal C31-DS by Xypex or similar approved) | D132: m | E132: =+ROUND((1.25+1.55+1.55+1.55+0.86)*105%,1) -> 7.1
B134: 8.7 | C134: Grouting of Sluice Gates with Sikagrout 212 by Sika or similar approved:
A136: B.1.3.22 | C136: For Channel Sluice Gates | D136: No. | E136: =E78 -> 6.0
A138: B.1.3.23 | C138: For Hand-stops | D138: No. | E138: =E74 -> 10.0
A140: B.1.4 | B140: SANS 1200 L | C140: MEDIUM PRESSURE PIPELINES
B142: 8.2.5 | C142: Supply and Place Pipes, Valves and Specials (Short Pipe Runs)
C144: Note the following:
C146: (a) All stainless steel pipework to Gr 304 and to have minimum wall thickness of 6mm
C148: (b) All Flanges to be "Raised Face" to Table 1600/3 of SANS 1123
C150: (c) Nominal Pressure Rating = 16 bar
C152: (d) 3mm thick spiral wound ring gaskets ("Maxiflex" by Klinger or similar approved) to be used between all flanged connections
A154: B.1.4.1 | C154: Item 1 - DN350 Universal Flange Adaptor | D154: No. | E154: 1.0
A156: B.1.4.2 | C156: Item 2 - DN350 x 500mm Long Stainless Steel Gr 304 Puddle Pipe Flanged One End | D156: No. | E156: 1.0
A158: B.1.4.3 | C158: Item 3 - DN200 x 90 deg Medium Radius Stainless Steel Gr 304 Bend Flanged Both Ends (R = 405mm, C/F = 405mm) | D158: No. | E158: 4.0
A160: B.1.4.4 | C160: Item 4 - DN200 Buttwelded HDPe Stub with S/S Backing Flange | D160: No. | E160: 1.0
A163: TOTAL CARRIED FORWARD:
A164: TOTAL BROUGHT FORWARD:
A166: B.1.4.5 | C166: Item 5 - DN300 x 500mm Long Stainless Steel Gr 304 Puddle Pipe Flanged one end | D166: No. | E166: 1.0
A168: B.1.4.6 | C168: Item 6 - DN300 Flange Adaptor | D168: No. | E168: 2.0
A170: B.1.4.7 | C170: Item 7 - DN200 x 1800mm Long (nominal) Stainless Steel Gr 304 Pipe flanged both ends cut to suit site conditions | D170: No. | E170: 1.0
A172: B.1.5 | B172: SANS 1200 LD | C172: SEWERS
A174: B.1.5.1 | B174: 8.2.11 | C174: Connect into existing DN300 Asbetos Cement Outlet pipeline between existing inlet works and existing Primary Settling Tank, including for removal of Asbestos Pipe, end caps etc. | D174: Sum | E174: 1.0
A210: TOTAL SCHEDULE B.1 CARRIED FORWARD TO SUMMARY:
A212: B.2 | C212: NEW OVERFLOW METER CHAMBER
C214: Refer to Drg D34843-00C-134-09
A216: B.2.1 | B216: SANS 1200C | C216: SITE CLEARANCE
A218: B.2.1.1 | B218: 8.2.1 | C218: Clear and Grub Site for New Meter Chamber | D218: m2 | E218: =ROUND(1.75*1.75,1) -> 3.1
A220: B.2.1.2 | B220: PSC 8.2.10 | C220: Remove 150mm thick (nominal) layer of topsoil, reinstate or spread on site in designated areas | D220: m2 | E220: =E218 -> 3.1
A222: B.2.2 | B222: SANS 1200 D | C222: EARTHWORKS
A224: B.2.2.1 | B224: 8.3.3 | C224: a) Restricted Excavation in all materials for new overflow meter chamber for maxium depth of 3.0 m below ground level, use for embankment, spread on site in designated areas or backfill | D224: m3 | E224: =ROUND(1.75*1.75*3,1) -> 9.2
A226: B.2.2.2 | B226: PSD 8.3.14 | C226: Profile, spread, rip, recompact & test in situ material to 93% MOD AASHTO in 150 mm thick layers | D226: m3 | E226: =ROUND(1.75*1.75*0.15,1) -> 0.5
A228: B.2.2.3 | B228: PSD 8.3.7 | C228: Design, Supply, Provision and maintenance of Lateral Support for the duration of construction activities | D228: Sum | E228: 1.0
A230: B.2.3 | B230: SANS 1200 G | C230: CONCRETE (STRUCTURAL)
B232: 8.2 | C232: Formwork
C234: Supply, erect, bind, handle and take down:
A236: B.2.3.1 | B236: 8.2.1 | C236: Rough Vertical Formwork for RC Base Slab | D236: m2 | E236: =+ROUND(1.75*0.3*4,1) -> 2.1
B238: 8.2.2 | C238: Smooth Formwork:
C240: Vertical To:
A242: B.2.3.2 | C242: RC Walls | D242: m2 | E242: =+ROUND((1.25*2*4)+(1.75*2*4),1) -> 24.0
A244: B.2.3.3 | C244: Sides of Chamber Roof Slab | D244: m2 | E244: =+ROUND(1.75*0.2*4,1) -> 1.4
C246: Horizontal To:
A248: B.2.3.4 | C248: Underside of Concrete Roof Slab | D248: m2 | E248: =ROUND(1.75*1.75,1) -> 3.1
A252: TOTAL CARRIED FORWARD:
A253: TOTAL BROUGHT FORWARD:
B255: PSG 8.2.6 | C255: Box-Out Holes / Form Voids
A257: B.2.3.5 | C257: a) DN300 Stainless Steel Puddle Pipes through 250mm thick RC Walls | D257: No. | E257: 2.0
A259: B.2.3.6 | C259: d) 1075 x 775mm for Manhole Cover in 200mm thick Roof Slab | D259: No. | E259: 1.0
B261: 8.3 | C261: Reinforcement
C263: Supply, Handle, Bend, Cut and Fix:
A265: B.2.3.7 | B265: 8.3.1 | C265: High Tensile Steel Bars | D265: t | E265: =+ROUND((1.75*1.75*0.25*0.135)+(1.5*2*0.15)+(1.75*1.75*0.2*0.135),1) -> 0.6
B267: 8.4 | C267: Concrete
C269: Supply, mix, place, compact and test:
B271: 8.4.3 | C271: Strength Concrete:
A273: B.2.3.8 | C273: Class 30/19 MPa Concrete for RC base, walls and roof slab | D273: m3 | E273: =+ROUND((1.75*1.75*0.25)+(1.5*2)+(1.75*1.75*0.2),1) -> 4.4
A275: B.2.3.9 | C275: Class 15/19 MPa Concrete for blinding and valve pedestal: | D275: m3 | E275: =+ROUND((1.75*1.75*0.05)+(0.7*0.7*0.3),1) -> 0.3
A277: B.2.3.10 | B277: 8.4.4 | C277: a) Wood-floated finish to top of RC walls and roof slab | D277: m2 | E277: 4.6
A279: B.2.3.11 | B279: 8.5 | C279: 2 No. Layers of 3-ply Malthoid between top of RC walls and chamber roof slab | D279: m | E279: =ROUND(1.725*4,1) -> 6.9
C281: Sundries
A283: B.2.3.12 | C283: Supply and Install 980 x 680mm type 9E lockable polymer cover and frame (Maverick Trading or similar approved) | D283: No. | E283: 1.0
A299: TOTAL CARRIED FORWARD:
A300: TOTAL BROUGHT FORWARD:
A302: B.2.4 | B302: SANS 1200 L | C302: MEDIUM PRESSURE PIPELINES
C304: Note the following:
C306: (a) All stainless steel pipework to Gr 304 and to have minimum wall thickness of 6mm
C308: (b) All Flanges to be "Raised Face" to Table 1600/3 of SANS 1123
C310: (c) Nominal Pressure Rating = 16 bar
C312: (d) 3mm thick spiral wound ring gaskets ("Maxiflex" by Klinger or similar approved) to be used between all flanged connections
B314: 8.2.5 | C314: Supply and Place Pipes, Valves and Specials (Short Pipe Runs)
A316: B.2.4.1 | C316: Item 1 - DN315 Flange Adaptor for uPVC Pipe | D316: No. | E316: 2.0
A318: B.2.4.2 | C318: Item 2 - DN300 Gr 304 Stainless Steel "Gooseneck" with dimensions as shown | D318: No. | E318: 2.0
A320: B.2.4.3 | C320: Item 3 - Table 1600/8 Gr 304 Stainless Steel Blank Flange | D320: No. | E320: 2.0
A322: B.2.4.4 | C322: Item 4 - DN300 x 1000mm Long Gr 304 Stainless Steel Puddle Pipe flanged both ends | D322: No. | E322: 2.0
A324: B.2.4.5 | C324: Item 5 - DN300 Electromagnetic Flow Meter ("Magflux" by MJK or similar approved) C/W converter and earthing rings | D324: No. | E324: 1.0
A339: TOTAL SCHEDULE B.2 CARRIED FORWARD TO SUMMARY:
A341: B.3 | C341: NEW ACCESS ROAD
B343: SANS 1200 D | C343: EARTHWORKS
A345: B.3.1 | B345: PSD 8.3.4 | C345: Import G8 material from commercial sources and compact to 90% of MDD new access road | D345: m3 | E345: =ROUND(40*5.9*0.15,1) -> 35.4
B347: SANS 1200 ME | C347: SUBBASE
A349: B.3.2 | B349: 8.3.3 | C349: Supply G5 material from commercial sources and construct subbase | D349: m3 | E349: =ROUND(40*5.6*0.15,1) -> 33.6
A351: B.3.3 | B351: 8.3.5 | C351: d) Process subbase material by Stabilisation to achieve a cement stabilised C4 layer with UCS of 1.5MPa & Min I.T.S 200KPa compacted to 95% Mod AASHTO | D351: m3 | E351: =E349 -> 33.6
A353: B.3.4 | B353: 8.3.8 | C353: b) Supply of Portland Cement as Stabilising agent | D353: t | E353: =ROUND(0.1111111*E351,1) -> 3.7
B355: SANS 1200 MF | C355: BASE
A357: B.3.5 | B357: 8.3.3 | C357: a) Construct base with G2 gravel material compacted to 102 % Mod.AASHTO max. density from commercial sources or designated borrow-pits | D357: m3 | E357: =ROUND(40*5.3*0.15,1) -> 31.8
B359: SANS 1200 MH | C359: ASPHALT SURFACING
A361: B.3.6 | B361: 8.5.1 & PS.33.7.2 | C361: Prime coat of Inverted bitumen emulsion. Application Rate 0.7 L/m2 | D361: m2 | E361: =40*5 -> 200.0
A363: B.3.7 | B363: PS.33.7.2 | C363: Asphalt surfacing layer - sand skeletal mix - Continously graded as defined (40mm thickness, (Medium Grade) using A-E2 modified binder maximum aggregate size 14.0mm) | D363: m2 | E363: 200.0
B365: SANS 1200 MK | C365: KERBING AND CHANNELING
A367: B.3.8 | B367: 8.2.2 | C367: Construct Concrete kerbing and channeling combined complete as per detail C on Drg D34843-00C-123-01. | D367: m | E367: 80.0
A373: TOTAL SCHEDULE B.3 CARRIED FORWARD TO SUMMARY:
A375: B.4 | C375: BRICKWORK KIOSKS FOR M&E EQUIPMENT
C377: The Contractor is to note that no drawings have been provided for the various brickwork kiosks that are required to house the mechanical and electrical equipment, given that the final dimensions of this equipment will be finalised by the M&E Sub-Contractor during construction. Estimated quantities have been provided in the below schedule to cater for the activities required for these structures.
A379: B.4.1 | B379: SANS 1200 D | C379: EARTHWORKS
A381: B.4.1.1 | B381: 8.3.1.1 | C381: Clear and Strip Site for brickwork kiosks | D381: m2 | E381: =+(5*5)+(3*3)+(3*3) -> 43.0
A383: B.4.1.2 | B383: 8.3.3 | C383: Excavate in all materials for new brickwork kiosk strip foundations, use for embankment, spread on site in designated areas or backfill and compact to 90% MOD AASTO in layers no greater than 300mm thickness. | D383: m3 | E383: =+ROUND((16.8*0.8)+(10.4*0.8*2),1) -> 30.1
C385: b) Extra-Over Item B.4.1.2 above for:
A387: B.4.1.3 | C387: 1) Intermediate Excavation (provisional) | D387: m3 | E387: =+ROUND(45%*E383,1) -> 13.5
A389: B.4.1.4 | C389: 2) Hard Rock Excavation (provisional) | D389: m3 | E389: =+ROUND(5%*E383,1) -> 1.5
A391: B.4.1.5 | B391: PSD 8.3.4 | C391: Import, Spread and Compact G5 Material to 95% MOD AASHTO, regardless of source | D391: m3 | E391: =ROUND(3*3*0.3,1) -> 2.7
A393: B.4.1.6 | B393: PSD 8.3.14 | C393: Rip, re-compact and test in-situ material to 93% MOD AASHTO | D393: m3 | E393: =ROUND((2.5*2.5*0.15)+(3*3*0.3),1) -> 3.6
A395: B.4.2 | B395: SANS 1200 G | C395: CONCRETE (STRUCTURAL)
B397: 8.2 | C397: Formwork
C399: Supply, erect, bind, handle and take down:
A401: B.4.2.1 | B401: 8.2.1 | C401: Rough Vertical Formwork between apron panels | D401: m2 | E401: =+ROUND((26*1*0.2)+(22*1*0.2*2),1) -> 14.0
B403: 8.2.2 | C403: Smooth Formwork:
A405: B.4.2.2 | C405: Vertical to Sides of Roof Slabs | D405: m2 | E405: =+ROUND((5.46*0.25*4)+(3.46*0.25*4*2),1) -> 12.4
A407: B.4.2.3 | C407: Horizontal to Underside of Roof Slab (Including for scaffolding up to 3.0m high) | D407: m2 | E407: =+ROUND((5.46*5.46)+(3.46*3.46*2),1) -> 53.8
A409: TOTAL CARRIED FORWARD:
A410: TOTAL BROUGHT FORWARD:
B412: 8.3 | C412: Reinforcement
C414: Supply, Handle, Bend, Cut and Fix:
A416: B.4.2.4 | B416: 8.3.1 | C416: High Tensile Steel Bars (Provisional) | D416: t | E416: =+ROUND((10.336*0.4*0.135)+(16.736*0.4*0.135),1) -> 1.5
A418: B.4.2.5 | B418: PSG 8.3.2 | C418: Mesh Ref .395 (minimum 300mm overlap between panels | D418: m2 | E418: =+ROUND((5*5)+(3*3*2)+25.9+(17.84*2),1) -> 104.6 | H418: 25.84
B420: 8.4 | C420: Concrete
C422: Supply, mix, place, compact and test:
B424: 8.4.3 | C424: Strength Concrete
A426: B.4.2.6 | C426: Class 30 / 19 MPa Concrete for RC Roof Slabs | D426: m3 | E426: =+ROUND((5.46*5.46*0.25)+(3.46*3.46*0.25*2),1) -> 13.4
A428: B.4.2.7 | C428: Class 25/19 MPa Concrete for RC Surface Beds, Aprons, and Strip Foundations | D428: m3 | E428: =+ROUND((5*5*0.2)+(3*3*0.2*2)+(25.9*0.125)+(17.84*0.125*2)+(10.336*0.4)+(16.736*0.4),1) -> 27.1
A430: B.4.2.8 | C430: Class 20/19 MPa mass concrete for miscellaneous items | D430: m3 | E430: 3.0
A432: B.4.2.9 | C432: Class 15/19 MPa blinding layer | D432: m3 | E432: =+ROUND((10.336*0.05)+(16.736*0.05)+(5*5*0.05)+(3*3*0.05*2),1) -> 3.5
B434: 8.4.4 | C434: Unformed Surface Finishes
A436: B.4.2.10 | C436: a) Wood-floated finish to top of apron slabs and roof slab | D436: m2 | E436: =+ROUND((5.46*5.46)+(3.46*3.46*2)+(25.9)+(17.84*2),1) -> 115.3
A438: B.4.2.11 | C438: c) Power-floated finish to surface beds | D438: m2 | E438: =+ROUND((5*5)+(3*3*2),1) -> 43.0
B440: 8.5 | C440: Joints
A442: B.4.2.12 | C442: 2No. Layers of 3-ply malthoid between 230mm thick brickwork and RC roof slabs | D442: m | E442: =+ROUND((12.92*2)+(20.92),1) -> 46.8
C444: Isolation Joint Between Brickwork walls and surface beds / apron slabs as per detail 15 on Drg D34843-00C-134-07:
A446: B.4.2.13 | C446: 200 x 10 mm Thick Polyethylene Joint Former ("Jointex" by Sondor or similar approved) with hinged 10 x 10 mm temporary blocking piece | D446: m | E446: =20+(12*2) -> 44.0
A448: B.4.2.14 | C448: 100 x 10 mm Thick Polyethylene Joint Former ("Jointex" by Sondor or similar approved) with hinged 10 x 10 mm temporary blocking piece | D448: m | E448: =+ROUND((13.84*2)+(21.84),1) -> 49.5
A450: TOTAL CARRIED FORWARD:
A451: TOTAL BROUGHT FORWARD:
A453: B.4.2.15 | C453: Plug 10 x 10 mm void with approved polysulphide joint sealant ("Sikaflex" by Sika or similar approved) | D453: m | E453: =E446+E448 -> 93.5
C455: Keyed Construction Joint as per Detail 11 on Drg D34843.00C-134-07 for Aprons
A457: B.4.2.16 | C457: 30 x 20 mm Key Joint Between Panels | D457: m | E457: =26+(22*2) -> 70.0
A459: B.4.2.17 | C459: 20 x 8 mm thick reaming out of saw-cut 21 days after casting | D459: m | E459: =26+(22*2) -> 70.0
A461: B.4.2.18 | C461: 10mm Ø Bond-Breaking Cord ("Duracord" by ABE or similar approved) | D461: m | E461: =26+(22*2) -> 70.0
A463: B.4.2.19 | C463: Plug 10 x 8 mm void with approved polysulphide joint sealant ("Sikaflex" by Sika or similar approved) | D463: m | E463: =26+(22*2) -> 70.0
C465: Building Works:
A467: B.4.2.20 | C467: 230mm Thick Double-Skin Load-Bearing NFX Clay Foundation Brickwork with 14 MPa Compressive Strength Jointed in Class II Mortar. Rate to include for "Brickseal" and Brickforce every third course. | D467: m2 | E467: =ROUND(12.92+12.92+16.92,1) -> 42.8
A469: B.4.2.21 | C469: 230mm Thick Double-Skin Load-Bearing Clay Facebrick with 14 MPa Compressive Strength Jointed in Class II Mortar. Rate to include for "Brickseal" and Brickforce every third course. | D469: m2 | E469: =ROUND(38.76+62.76+38.76,1) -> 140.3
A471: B.4.2.22 | C471: 150 x 230mm thick air bricks | D471: No. | E471: =+ROUND((20*4)+(12*2*4),1) -> 176.0
... 5 more rows

Sheet B-Sum
B1: SCHEDULE B: NEW INLET WORKS (CIVIL/STRUCTURAL)
A2: SUMMARY OF SECTIONS - SCHEDULE B
A4: SECTION | B4: DESCRIPTION | F4: AMOUNT
A6: B.1 | B6: CONSTRUCTION OF NEW INLET WORKS AND DEMOLITION OF EXISTING
A8: B.2 | B8: NEW OVERFLOW METER CHAMBER
A10: B.3 | B10: NEW ACCESS ROAD
A12: B.4 | B12: BRICKWORK KIOSKS FOR M&E EQUIPMENT
A14: B | B14: TOTAL SCHEDULE B CARRIED FORWARD TO SUMMARY PAGE (B.1 + B.2 + B.3 + B.4)

Sheet C
A1: SCHEDULE C: PRIMARY SETTLING TANK REPAIRS & ALTERATIONS
A2: ITEM | B2: PAYMENT | C2: DESCRIPTION | D2: UNIT | E2: QTY | F2: RATE | G2: AMOUNT
C4: REPAIRS & ALTERATIONS TO EXISTING PRIMARY SETTLING TANK
A6: C.1 | C6: CLEARING OUT OF TANK
A8: C.1.1 | B8: PS.24.a) | C8: Allow for temporary works during primary settling tank rehabilitation activities, including for all plant, labour and equipment for a period of 3-weeks. Note: 25% of tendered rate payable upon set up of temporary system, and 75% of rate payable upon completion of activities. | D8: Sum | E8: 1.0
A10: C.1.2 | B10: PS.24.b) | C10: Provision of Lime for Stabilisation of Resultant Sludge accumulated in overflow ponds (provisional) | D10: t | E10: 2.0
A12: C.1.3 | B12: PS.34.2 | C12: Clear Out Sludge from Primary Settling Tank | D12: m3 | E12: =+ROUND((PI()*0.25*11.3*11.3*1.53)+(PI()*5.65*5.65*9.49/3),1) -> 470.7
A14: C.2 | B14: SANS 1200 C | C14: SITE CLEARANCE
B16: PSC 8.2.7 | C16: Dismantle and remove pipework and valves and dispose in approved dump site:
A18: C.2.1 | C18: DN150 Flanged Gate Valves | D18: No. | E18: 2.0
A20: C.2.2 | C20: DN300 Asbestos Cement Pipework | D20: m | E20: 12.0
B22: PSC 8.2.8 & PS.34.3 | C22: Demolish and Remove Structures/buildings and dismantle steelwork etc.
A24: C.2.3 | C24: Break Out Existing Coping Blocks and dispose in approved dump site | D24: Sum | E24: 1.0
A26: C.2.4 | C26: Break out top 200mm height (nominal) of existing 13,100 mm diameter x 200mm thick concrete external wall with approved means | D26: Sum | E26: 1.0
A28: C.3 | B28: SANS 1200 L | C28: MEDIUM PRESSURE PIPELINES
A30: C.3.1 | B30: 8.2.5 | C30: Supply and Install DN150 Metal-Seated Wedge Gate Valve C/W Hand-Wheel | D30: No. | E30: 2.0
A32: C.4 | B32: SANS 1200 G | C32: CONCRETE (STRUCTURAL)
B34: 8.2 | C34: Formwork
C36: Supply, erect, bind, handle and take down:
A38: C.4.1 | B38: 8.2.2 | C38: Smooth, Circular Vertical Formwork on wall | D38: m2 | E38: =+ROUND((PI()*13.1*0.3)+(PI()*13.3*0.3),1) -> 24.9
A40: TOTAL CARRIED FORWARD:
A41: TOTAL BROUGHT FORWARD:
B43: 8.3 | C43: Reinforcement
C45: Supply, Handle, Bend, Cut and Fix:
A47: C.4.2 | B47: 8.3.1 | C47: High Tensile Steel Bars (Provisional) | D47: kg | E47: 125.0
A49: C.4.3 | B49: PS.34.3 & PSG 8.3.4 | C49: Coating of existing rebar with Epocem Armotec 110 Monotop (Sika or similar approved) - provisional | D49: ℓ | E49: 15.0
B51: 8.4 | C51: Concrete
A53: C.4.4 | B53: 8.4.4 | C53: b) Steel-floated finish to top of epoxy grout layer | D53: m2 | E53: =+ROUND((PI()*0.25*13.3*13.3)-(PI()*0.25*13.1*13.1),1) -> 4.1
B55: 8.7 | C55: Grouting
A57: C.4.5 | B57: PS.34.3 & PSG 8.7.c) | C57: Supply, place and compact approved epoxy repair mortar (Sikadur-43 ZA by Sika or similar approved) including for all surface preparation required (provisional) | D57: m3 | E57: =+ROUND(ROUND((PI()*0.25*13.3*13.3)-(PI()*0.25*13.1*13.1),1)*0.3,1) -> 1.2
A90: TOTAL SCHEDULE C CARRIED FORWARD TO SUMMARY

Sheet D
C1: SCHEDULE D: REPAIRS TO BIOLOGICAL FILTER AND DOSING SIPHON
A2: ITEM | B2: PAYMENT | C2: DESCRIPTION | D2: UNIT | E2: QTY | F2: RATE | G2: AMOUNT
A4: D | C4: REPAIRS TO BIOLOGICAL FILTER AND SIPHON DOSING CHAMBER
A6: D.1 | B6: PS.24.a) | C6: Allow for temporary works during high-pressure jetting of Biofilter, including for all plant, labour, equipment and water control for the duration of activites. Note: 25% of tendered rate payable upon set up of temporary system, and 75% of rate payable upon completion of activities. | D6: Sum | E6: 1.0
A8: D.2 | B8: PS.35 | C8: High-Pressure Jetting of Biofilter through Aeration Tiles | D8: hr | E8: =180*2 -> 360.0
A48: TOTAL SCHEDULE D CARRIED FORWARD TO SUMMARY

Sheet E
C1: SCHEDULE E: REPAIRS & ALTERATIONS TO SLUDGE DIGESTER
A2: ITEM | B2: PAYMENT | C2: DESCRIPTION | D2: UNIT | E2: QTY | F2: RATE | G2: AMOUNT
A4: E.1 | C4: CLEARING OUT OF SLUDGE DIGESTER AND ASSOCIATED WORKS
C6: Refer to Drg D34843-00C-134-02
A8: E.1.1 | B8: PS.22.4.a) | C8: Contractor's compliance with health and safety, including for measuring explosiveness levels, Gas/ Oxygen detection equipment, PPE, safety equipment, signage etc. Note: 50% of tendered rate payable upon acceptance of plan and establishment of equipment on site, and the balance will be payable upon completion of rehabilitation activities. | D8: Sum | E8: 1.0
A10: E.1.2 | B10: PS.24.a) | C10: Allow for temporary works during digester rehabilitation activities, including for all plant, labour and equipment for a period of 3 months. Note: 25% of tendered rate payable upon set up of temporary system, and 75% of rate payable upon completion of activities. | D10: Sum | E10: 1.0
A12: E.1.3 | B12: PS.24.b) | C12: Provision of Lime for Stabilisation of Resultant Sludge accumulated in overflow ponds (provisional) | D12: t | E12: 5.0
A14: E.1.4 | B14: PS.22.4.b) | C14: Allow for Design and implementation of Lateral restraint for circumference of digester during clearing out activities | D14: Sum | E14: 1.0
A16: E.1.5 | B16: PS.22.4.c) | C16: Coring Out of Openings in Digester walls with water cutting:
A18: E.1.5.1 | C18: 500 x 500 x 375mm thick Opening for New Constant Level Weir Outlet | D18: No. | E18: 1.0
A20: E.1.5.2 | C20: 500 x 500 x 375mm thick opening for new supernatant decant pipework | D20: No. | E20: 1.0
A22: E.1.5.3 | C22: 1000 x 1000 x 375mm thick opening for new access and for new jet-mixing pumps | D22: No. | E22: 1.0
A24: E.1.6 | B24: PS.22.4.d) | C24: Clearing Out of Sludge from digester and safe disposal through approved means in sludge drying beds | D24: m3 | E24: 1,800.0
A26: E.1.7 | B26: PS.22.4.e) | C26: Provision of Seed Sludge from Mpumalanga WWTW, including for all transport, equipment and labour required | D26: m3 | E26: 180.0
A30: TOTAL SCHEDULE E.1 CARRIED FORWARD TO SUMMARY:
A32: E.2 | C32: ALTERATIONS TO DIGESTER ROOF HATCH
A34: E.2.1 | B34: SANS 1200 C | C34: SITE CLEARANCE
A36: E.2.1.1 | B36: PSC 8.2.8 & PS.22.4.g) | C36: Break Out Existing Coping Blocks on digester roof access hatch and dispose in approved dump site | D36: Sum | E36: 1.0
A38: E.2.1.2 | B38: PSC 8.2.8 & PS.22.4.g) | C38: Break out top 200mm height (nominal) of existing 2,200 mm diameter x 200mm thick concrete external wall with approved means | D38: Sum | E38: 1.0
A40: E.2.2 | B40: SANS 1200 G | C40: CONCRETE (STRUCTURAL)
B42: 8.2 | C42: Formwork
C44: Supply, erect, bind, handle and take down:
A46: E.2.2.1 | B46: 8.2.2 | C46: Smooth, Circular Vertical Formwork on both sides of external wall | D46: m2 | E46: =+ROUND((PI()*2.4*0.3)+(PI()*2*0.3),1) -> 4.1
B48: 8.3 | C48: Reinforcement
C50: Supply, Handle, Bend, Cut and Fix:
A52: E.2.2.2 | B52: 8.3.1 | C52: High Tensile Steel Bars (Provisional) | D52: kg | E52: 250.0
A54: E.2.2.3 | B54: PS.22.4.g) & PSG 8.3.4 | C54: Coating of existing rebar with Epocem Armotec 110 Monotop (Sika or similar approved) - provisional | D54: ℓ | E54: 5.0
B56: 8.4 | C56: Concrete
A58: E.2.2.4 | B58: 8.4.4 | C58: b) Steel-floated finish to top of epoxy grout layer | D58: m2 | E58: =+ROUND((PI()*0.25*2.2*2.2)-(PI()*0.25*2*2),1) -> 0.7
B60: 8.7 | C60: Grouting
A62: E.2.2.5 | B62: PS.22.4.g) & PSG 8.7.c) | C62: Supply, place and compact approved epoxy repair mortar (Sikadur-43 ZA by Sika or similar approved) including for all surface preparation required (provisional) | D62: m3 | E62: =+ROUND(ROUND((PI()*0.25*2.4*2.4)-(PI()*0.25*2*2),1)*0.3,1) -> 0.4
A75: TOTAL SCHEDULE E.2 CARRIED FORWARD TO SUMMARY:
A77: E.3 | C77: NEW DIGESTER PIPEWORK AND ASSOCIATED INFRASTRUCTURE
C79: Refer to Drg D34843-00C-134-02
A81: E.3.1 | B81: SANS 1200 C | C81: SITE CLEARANCE
A83: E.3.1.1 | B83: 8.2.1 | C83: Clear and Grub Site New Supernatant Sump and jet mixing pump house | D83: m2 | E83: =ROUNDUP(2.4*2.3,1) -> 5.6
A85: E.3.1.2 | B85: PSC 8.2.10 | C85: Remove 150mm thick (nominal) layer of topsoil, reinstate or spread on site in designated areas | D85: m2 | E85: =ROUNDUP(2.4*2.3,1) -> 5.6
B87: PSC 8.2.7 | C87: Dismantle and remove pipework and valves and dispose in approved dump site:
A89: E.3.1.3 | C89: DN200 Asbestos Cement Class C Pipework Including for Bends, Specials, Flanges, Couplings etc. within the digester | D89: m | E89: 45.0
A91: E.3.1.4 | C91: DN150 Asbestos Cement Class C Pipework Including for Bends, Specials, Flanges, Couplings etc. within the digester | D91: m | E91: 30.0
A93: E.3.1.5 | C93: DN100 Asbestos Cement Class C Pipework Including for Bends, Specials, Flanges, Couplings etc. within the digester | D93: m | E93: 20.0
A95: E.3.1.6 | C95: DN100 Flanged Supernatant Decanting Gate Valves | D95: No. | E95: 3.0
A97: E.3.1.7 | C97: DN200 Flanged Gate Valves in Sludge Digester Outlet Chamber | D97: No. | E97: 2.0
A99: E.3.2 | B99: SANS 1200 D | C99: EARTHWORKS
A101: E.3.2.1 | B101: 8.3.3 | C101: Excavate in all materials for new supernatant decanting sump and jet mixing pump kiosk strip foundations, use for embankment, spread on site in designated areas or backfill and compact to 90% MOD AASTO in layers no greater than 300mm thickness. | D101: m3 | E101: =+ROUND((2.5*2.5*2)+(4*4*1.5),1) -> 36.5
A103: E.3.2.2 | B103: PSD 8.3.4 | C103: Import, Spread and Compact G5 Material to 95% MOD AASHTO, regardless of source | D103: m3 | E103: =ROUND(3*3*0.3,1) -> 2.7
A105: E.3.2.3 | B105: PSD 8.3.14 | C105: Rip, re-compact and test in-situ material to 93% MOD AASHTO | D105: m3 | E105: =ROUND((2.5*2.5*0.15)+(3*3*0.3),1) -> 3.6
A111: TOTAL CARRIED FORWARD:
A112: TOTAL BROUGHT FORWARD:
A114: E.3.3 | B114: SANS 1200 G | C114: CONCRETE (STRUCTURAL)
B116: 8.2 | C116: Formwork
C118: Supply, erect, bind, handle and take down:
B120: 8.2.1 | C120: Rough Formwork:
C122: Vertical To:
A124: E.3.3.1 | C124: Supernatant Sump Base Slab | D124: m2 | E124: =ROUND(2.5*0.25*4,1) -> 2.5
A126: E.3.3.2 | C126: Meter Chamber Base Slab | D126: m2 | E126: =+ROUND(1.75*0.3*4,1) -> 2.1
B128: 8.2.2 | C128: Smooth Formwork
C130: Vertical To:
A132: E.3.3.3 | C132: Supernatant Sump and Meter Chamber Walls | D132: m2 | E132: =ROUND(1.8*2.3*8,1)+24 -> 57.1
A134: E.3.3.4 | C134: Supernatant Sump and Meter Chamber Roof Slab and Opening for Grate | D134: m2 | E134: =ROUND((0.2*2.3*4)+(1.2*0.25*2)+(1.3*0.25*2),1)+1.4 -> 4.5
A136: E.3.3.5 | C136: Mixing Pump Plinths | D136: m2 | E136: =ROUND(3*0.25*4,1) -> 3.0
A138: E.3.3.6 | C138: RC Surface Bed Panels for Mixing Pump House | D138: m2 | E138: =ROUND(4*0.2*2,1) -> 1.6
C140: Horizontal To:
A142: E.3.3.7 | C142: Underside of Supernatant Sump and Meter Chamber Roof Slab | D142: m2 | E142: =ROUND(2*2.1,1)+3.1 -> 7.3
A144: E.3.3.8 | C144: Underside of Mixing Pump House Roof Slab | D144: m2 | E144: =4*4 -> 16.0
B146: PSG 8.2.6 | C146: Box-Out Holes / Form Voids
C148: a) Small, circular, of diameter up to and including 0.35m, up to and including 0.5m deep for:
A150: E.3.3.9 | C150: DN200 Stainless Steel Puddle Pipe through RC Chamber walls | D150: No. | E150: 2.0
A152: E.3.3.10 | C152: DN150 Stainless Steel Puddle Pipe through RC Sump Wall | D152: No. | E152: 1.0
A154: E.3.3.11 | C154: d) 1075 x 775mm for Manhole Cover in 200mm thick Roof Slab | D154: No. | E154: 1.0
A158: TOTAL CARRIED FORWARD:
A159: TOTAL BROUGHT FORWARD:
B161: 8.3 | C161: Reinforcement
C163: Supply, Handle, Bend, Cut and Fix:
A165: E.3.3.12 | B165: 8.3.1 | C165: High Tensile Steel Bars | D165: t | E165: =+(E179*0.18)+ROUND((1.75*1.75*0.25*0.135)+(1.5*2.5*0.15)+(1.75*1.75*0.2*0.135),1) -> 1.6
A167: E.3.3.13 | B167: PSG 8.3.2 | C167: Mesh Ref .395 (minimum 300mm overlap between panels | D167: m2 | E167: =3+16 -> 19.0
B169: 8.4 | C169: Concrete
C171: Supply, mix, place, compact and test:
A173: E.3.3.14 | B173: 8.4.2 | C173: Class 15/19 MPa Concrete Blinding Layer Beneath Foundations, Base Slab, surface beds and apron slabs | D173: m3 | E173: =+ROUND((2.4*2.3*0.05)+(13.6*0.05)+(21.84*0.05),1) -> 2.0
B175: 8.4.3 | C175: Strength Concrete
C177: Class 30/19 MPa Concrete for:
A179: E.3.3.15 | C179: RC Supernatant Sump Base, Walls and Roof Slab | D179: m3 | E179: =+ROUND((2.4*2.3*0.25)+(1.8*1.8)+(2.608*0.2),1) -> 5.1
A181: E.3.3.16 | C181: RC Meter Chamber Base, Walls and Roof | D181: m3 | E181: =+ROUND((1.75*1.75*0.25)+(1.5*2.5)+(1.75*1.75*0.2),1) -> 5.1
A183: E.3.3.17 | C183: RC Roof Slab for Jet Mixing Pump House | D183: m3 | E183: =+ROUND(4*4*0.2,1) -> 3.2
A185: E.3.3.18 | C185: Class 25/19 MPa Concrete for Jet Mixing Pump House Strip Footing, Surface Bed, Plinths and Apron Slabs | D185: m3 | E185: 14.2
A187: E.3.3.19 | C187: Class 20/19 MPa Concrete for benching in supernatant sump | D187: m3 | E187: =ROUND(0.5*0.3*2*115%,1) -> 0.3
A189: E.3.3.20 | C189: Class 15/19 MPa Concrete for blinding layer beneath foundations, base slabs, apron slabs etc. | D189: m3 | E189: =+ROUND((2.4*2.3*0.05)+(13.6*0.05)+(21.84*0.05),1)+0.3 -> 2.3
B191: 8.4.4 | C191: Unformed Surface Finishes:
A193: E.3.3.21 | C193: a) Wood-Floated Finish RC Chamber walls, roof slabs and pump house apron slabs | D193: m2 | E193: =1.8+2.7+21.9+4.6 -> 31.0
A195: E.3.3.22 | C195: b) Steel-floated finish to supernatant sump benching and top of pump house roof slab | D195: m2 | E195: 20.0
A197: E.3.3.23 | C197: c) Power-Floated Finish to Jet Mixing Pump House Surface Bed | D197: m2 | E197: =4*4 -> 16.0
A201: TOTAL CARRIED FORWARD:
A202: TOTAL BROUGHT FORWARD:
B204: 8.5 | C204: Joints
A206: E.3.3.24 | C206: 2No. Layers of 3-ply malthoid between 230/ 250mm thick brickwork/RC walls in RC Chambers and jet mixing pump house | D206: m | E206: =+ROUND(16.92+7.2,1)+6.9 -> 31.0
A208: E.3.3.25 | C208: Self-adhesive swellable waterstop (Kuniseal C31-DS by Xypex or similar approved) for base-to-wall joint in supernatant concrete sump | D208: m | E208: 7.2
C210: Keyed Construction Joint as per Detail 11 on Drg D34843.00C-134-07 for Apron and Surface Bed Panels for Jet Mixing Pump House:
A212: E.3.3.26 | C212: 30 x 20 mm Key Joint Between Panels | D212: m | E212: =19+8 -> 27.0
A214: E.3.3.27 | C214: 20 x 8 mm thick reaming out of saw-cut 21 days after casting | D214: m | E214: =19+8 -> 27.0
A216: E.3.3.28 | C216: 10mm Ø Bond-Breaking Cord ("Duracord" by ABE or similar approved) | D216: m | E216: =19+8 -> 27.0
A218: E.3.3.29 | C218: Plug 10 x 8 mm void with approved polysulphide joint sealant ("Sikaflex" by Sika or similar approved) | D218: m | E218: =19+8 -> 27.0
C220: Isolation Joint as per Detail 15 on Drg D34843.00C-134-07 between Apron Slabs, Surface Bed and Brickwork Walls for Jet Mixing Pump House:
A222: E.3.3.30 | C222: 200 x 10 mm Thick Polyethylene Joint Former ("Jointex" by Sondor or similar approved) with hinged 10 x 10 mm temporary blocking piece | D222: m | E222: 16.0
A224: E.3.3.31 | C224: 100 x 10 mm Thick Polyethylene Joint Former ("Jointex" by Sondor or similar approved) with hinged 10 x 10 mm temporary blocking piece | D224: m | E224: 17.9
A226: E.3.3.32 | C226: Plug 10 x 10 mm void with approved polysulphide joint sealant ("Sikaflex" by Sika or similar approved) | D226: m | E226: =E222+E224 -> 33.9
C228: Supernatant Sump and Meter Chamber Sundries:
A230: E.3.3.33 | C230: Supply and Install 1200 x 1200 mm FRP Grate with 28 x 51mm mesh size complete with G.M.S Frame cast into slab with fishtail lugs welded on at 200mm C/C and secured with type M clips | D230: No. | E230: 1.0
A232: TOTAL CARRIED FORWARD:
A233: TOTAL BROUGHT FORWARD:
C235: Supply and Install Stainless Steel Gr 304 Cat Ladder as per Drg D34843-00C-134-07 C/W rungs,stringers, brackets etc. for the following nominal lengths:
A237: E.3.3.34 | C237: 2000mm Long | D237: Sum | E237: 1.0
A239: E.3.3.35 | C239: 3000mm Long | D239: Sum | E239: 1.0
A241: E.3.3.36 | C241: Supply and Install 980 x 680mm type 9E lockable polymer cover and frame (Maverick Trading or similar approved) | D241: No. | E241: 1.0
C243: Jet Mixing Pump House Structure:
A245: E.3.3.37 | B245: PS.28 | C245: 230mm Thick Double-Skin Load-Bearing NFX Clay Foundation Brickwork with 14 MPa Compressive Strength Jointed in Class II Mortar. Rate to include for "Brickseal" and Brickforce every third course. | D245: m2 | E245: =ROUND(16.92*0.8,1) -> 13.5
A247: E.3.3.38 | B247: PS.28 | C247: 230mm Thick Double-Skin Load-Bearing Clay Facebrick with 14 MPa Compressive Strength Jointed in Class II Mortar. Rate to include for "Brickseal" and Brickforce every third course. | D247: m2 | E247: =ROUND(16.92*2.2,1) -> 37.2
A249: E.3.3.39 | C249: 150 x 230mm thick air bricks | D249: No. | E249: =+ROUNDUP((0.3*4*2*2)+(0.3*4*2*2),0) -> 10.0
A251: E.3.3.40 | C251: 250 micron "Gunplas" DPC Layer beneath surface beds and apron slabs. Soil poisoning beneath where applicable. | D251: m2 | E251: =16+21.9 -> 37.9
A253: E.3.3.41 | C253: 2000 high x 940mm wide Galvanised Steel Security Door with 500 x 500 Louvre at bottom of door (Trox Technic or similar approved) | D253: No. | E253: 1.0
A255: E.3.3.42 | C255: DN100 epoxy-coated cast iron/ductile iron full bore outlet cast into surface bed and roof slab with 90 degree outlet (Saint-Gobain or similar approved) | D255: No. | E255: 2.0
A257: E.3.3.43 | C257: DN110 uPVC pipe for downpipes and buried stormwater outlet complete with all bends and junctons | D257: m | E257: 6.0
A265: TOTAL CARRIED FORWARD:
A266: TOTAL BROUGHT FORWARD:
A268: E.3.4 | B268: SANS 1200 L | C268: MEDIUM PRESSURE PIPELINES
C270: Note the following:
C272: (a) All stainless steel pipework to Gr 304 and to have minimum wall thickness of 6mm
C274: (b) All Flanges to be "Raised Face" to Table 1600/3 of SANS 1123
C276: (c) Nominal Pressure Rating = 16 bar
C278: (d) 3mm thick spiral wound ring gaskets ("Maxiflex" by Klinger or similar approved) to be used between all flanged connections
C280: NEW SLUDGE DIGESTOR SUPERNATANT, OUTLET AND INLET PIPEWORK (REFER TO DRG D34843-00C-134-02):
A282: E.3.4.1 | B282: 8.2.4 | C282: Cutting of DN150 Cast Iron Digester Inlet Pipe Riser | D282: No. | E282: 2.0
B284: 8.2.5 | C284: Supply and Place Pipes, Valves and Specials (Short Pipe Runs)
A286: E.3.4.2 | C286: Item 1 - DN150 x 1000mm Long Stainless Gr 304 Plain Ended Pipe Welded as shown | D286: No. | E286: 3.0
A288: E.3.4.3 | C288: Item 2 - DN150 x 90 deg Stainless Steel Gr 304 Medium Radius Bend (R = 300mm) with flanged one end | D288: No. | E288: 6.0
A290: E.3.4.4 | C290: Item 3 - DN150 Flanged Metal-Seated Wedge Gate Valve with Hand-Wheel | D290: No. | E290: 3.0
A292: E.3.4.5 | C292: Item 4 - DN150 x 800mm Long Stainless Steel Gr 304 Stainless Steel Puddle Pipe flanged both ends | D292: No. | E292: 3.0
A294: E.3.4.6 | C294: Item 5 - DN150 x 1600mm Long Stainless steel Gr 304 pipe (plain ends) welded to bellmouth and bend and shown | D294: No. | E294: 1.0
A296: E.3.4.7 | C296: Item 6 - DN300 x DN150 Stainless Steel Gr 304 Bellmouth Welded to pipework as shown | D296: No. | E296: 3.0
A298: E.3.4.8 | C298: Item 7 - DN150 x 2200mm Long Stainless steel Gr 304 pipe (plain ends) welded to bellmouth and bend and shown | D298: No. | E298: 1.0
A300: TOTAL CARRIED FORWARD:
A301: TOTAL BROUGHT FORWARD:
M302: DN50 | N302: 477 | O302: =+N302/#REF! -> 
A303: E.3.4.9 | C303: Item 8 - DN150 x 2800mm Long Stainless steel Gr 304 pipe (plain ends) welded to bellmouth and bend and shown | D303: No. | E303: 1.0
A305: E.3.4.10 | C305: Item 9 - DN150 x 6000mm Long Stainless Steel Gr 304 pipe flanged one end | D305: No. | E305: 1.0 | M305: DN80 | N305: 580 | O305: =+N305/N302 -> 122%
M306: DN90 | N306: 580 | O306: =+N306/N305 -> 100%
A307: E.3.4.11 | C307: Item 10 - DN150 x 90 deg Stainless Steel Gr 304 Medium Radius Bend (R = 300mm) flanged both ends | D307: No. | E307: 1.0 | M307: DN100 | N307: 920 | O307: =+N307/N306 -> 159%
M308: DN150 | N308: =+N307*O307 -> 1459.310345
A309: E.3.4.12 | C309: Item 11 - DN150 x 500mm Long Stainless Steel Gr 304 Puddle Pipe flanged one end | D309: No. | E309: 1.0
A311: E.3.4.13 | C311: Item 12 - DN150 Flexible Step Coupling (Viking-Johnson or similar approved) | D311: No. | E311: 1.0
A313: E.3.4.14 | C313: Item 13 - DN150 x 10 000 mm Long (nominal and cut to suit on site) Stainless Steel Gr 304 pipe with plain ends | D313: No. | E313: 1.0
A315: E.3.4.15 | C315: Item 14 - DN200 Flanged Metal-seated Wedge Gate Valve with 1700 mm Long Extension Spindle and Hand-Wheel | D315: No. | E315: 2.0
A317: E.3.4.16 | C317: Item 15 - DN150 x 1200mm Long (nominal) Gr 304 Stainless Steel Pipe flanged both ends | D317: No. | E317: 2.0
A319: E.3.4.17 | C319: Item 16 - DN150 Electromagnetic Flow Meter ("Magflux" by MJK or similar approved) C/W converter and earthing rings | D319: No. | E319: 1.0
C321: NEW SLUDGE OUTLET FLOW METER (REFER TO DRG D34843-00C-134-10):
A323: E.3.4.18 | C323: Item 1 - DN200 Flexible PVC-to-Steel Step Coupling | D323: No. | E323: 4.0
A325: E.3.4.19 | C325: Item 2 - DN200 Gr 304 Stainless Steel "Gooseneck" complete as per detail | D325: No. | E325: 1.0
A327: E.3.4.20 | C327: Item 3 - DN200 Epoxy-coated Cast Iron End cap | D327: No. | E327: 2.0
A329: E.3.4.21 | C329: Item 4 - DN200 x 1000mm Long Gr 304 Stainless Steel puddle pipe flanged both ends | D329: No. | E329: 2.0
A331: E.3.4.22 | C331: Item 5 - DN200 Electromagnetic Flow Meter ("Magflux" by MJK or similar approved) C/W converter and earthing rings | D331: No. | E331: 1.0
A333: TOTAL CARRIED FORWARD:
A334: TOTAL BROUGHT FORWARD:
A336: E.3.4.23 | C336: Item 6 - DN200 x 2000mm Long uPVC Pipe Cut to suit | D336: No.
A338: E.3.5 | B338: SANS 1200 LD | C338: SEWERS
A340: E.3.5.1 | B340: 8.2.11 | C340: Tie in to existing Humus Sludge sump at sludge pump station with DN150 Stainless steel supernatant outlet pipe. Rate to include for breaking out opening in sump and making good with approved non-shrink grout | D340: Sum
A382: TOTAL SCHEDULE E.3 CARRIED FORWARD TO SUMMARY

Sheet E-Sum
B1: SCHEDULE E: REPAIRS & ALTERATIONS TO SLUDGE DIGESTER
A2: SUMMARY OF SECTIONS - SCHEDULE E
A4: SECTION | B4: DESCRIPTION | F4: AMOUNT
A6: E.1 | B6: CLEARING OUT OF SLUDGE DIGESTER AND ASSOCIATED WORKS
A8: E.2 | B8: ALTERATIONS TO DIGESTER ROOF HATCH
A10: E.3 | B10: NEW DIGESTER PIPEWORK AND ASSOCIATED INFRASTRUCTURE
A12: E | B12: TOTAL SCHEDULE B CARRIED FORWARD TO SUMMARY PAGE (E.1 + E.2 + E.3)

Sheet F
C1: SCHEDULE F: UPGRADES TO DISINFECTION FACILITIES
A2: ITEM | B2: PAYMENT | C2: DESCRIPTION | D2: UNIT | E2: QTY | F2: RATE | G2: AMOUNT
A4: F.1 | C4: SODIUM HYPOCHLORITE GENERATION FACILITY
A6: F.1.1 | B6: SANS 1200 C | C6: SITE CLEARANCE
A8: F.1.1.1 | C8: Clear and Grub Site for Sodium Hypochlorite Generation Facility | D8: m2 | E8: =ROUND(6.5*15,1) -> 97.5
A10: F.1.1.2 | C10: Remove 150mm thick (nominal) layer of topsoil, reinstate or spread on site in designated areas | D10: m2 | E10: =E8 -> 97.5
A12: F.1.1.3 | B12: PSC.8.2.8 | C12: Demolish, transport and dispose of existing concrete slab in proximity to new facility | D12: Sum | E12: 1.0
A14: F.1.2 | B14: SANS 1200 D | C14: EARTHWORKS
A16: F.1.2.1 | B16: 8.3.3 | C16: a) Restricted Excavation in all materials for foundations and use for embankment, spread on site in designated areas or backfill | D16: m3 | E16: =+ROUND((E10*0.8)+(16.216*3)+(1.44*0.5),1) -> 127.4
C18: b) Extra-Over Item F.1.2.1 above for:
A20: F.1.2.2 | C20: 1) Intermediate Excavation | D20: m3 | E20: =+ROUND(30%*E16,1) -> 38.2
A22: F.1.2.3 | C22: 2) Hard Rock Excavation | D22: m3 | E22: =+ROUND(7.5%*E16,1) -> 9.6
A24: F.1.2.4 | B24: PSD 8.3.4 | C24: Import, Spread, Compact and Test G5 Material to 95% MOD AASHTO in layers no greater than 300mm thickness from commercial sources, borrow-pits or quarries. | D24: m3 | E24: =+ROUND(4*13*0.3,1) -> 15.6
A26: F.1.2.5 | B26: PSD 8.3.7 | C26: Design, Supply, Provision and maintenance of Lateral Support for the duration of construction activities | D26: Sum | E26: 1.0
A28: F.1.2.6 | B28: PSD 8.3.14 | C28: Profile, spread, rip, recompact & test in situ material to 93% MOD AASHTO in 150 mm thick layers | D28: m3 | E28: =E24 -> 15.6
A39: TOTAL CARRIED FORWARD:
A40: TOTAL BROUGHT FORWARD:
A42: F.1.3 | B42: SANS 1200 G | C42: CONCRETE (STRUCTURAL)
B44: 8.2 | C44: Formwork
C46: Supply, erect, bind, handle and take down:
B48: 8.2.1 | C48: Rough Vertical Formwork to:
A50: F.1.3.1 | C50: RC Pad Foundations | D50: m2 | E50: =ROUND(1.2*0.4*4*8,1) -> 15.4
A52: F.1.3.2 | C52: RC Stub Columns and Ground Beams | D52: m2 | E52: =+ROUND((3.78*2.5*12)+(34.58*2.5),1) -> 199.9
B54: 8.2.2 | C54: Smooth Formwork
C56: Vertical To:
A58: F.1.3.3 | C58: Surface Bed Panels | D58: m2 | E58: =+ROUND((3.93*0.15)+(1.963*0.15)+(1.1*0.15*4)+(4*0.1),1) -> 1.9
A60: F.1.3.4 | C60: Apron Slab Panels | D60: m2 | E60: =+ROUND(0.11*21*115%,1) -> 2.7
A62: F.1.3.5 | C62: Water Tank and Pump Plinths | D62: m2 | E62: =+ROUND((2.8*0.35*4)+(0.8*0.35*4),1) -> 5.0
A64: F.1.3.6 | C64: Sides of Roller Shutter Door Beams | D64: m2 | E64: =+ROUND(3.9*0.45*4,1) -> 7.0
C66: Horizontal To:
A68: F.1.3.6 | C68: Underside of Roof | D68: m2 | E68: =4*13 -> 52.0
B70: 8.3 | C70: Reinforcement
C72: Supply, Handle, Bend, Cut and Fix:
A74: F.1.3.7 | B74: 8.3.1 | C74: High Tensile Steel Bars | D74: t | E74: =+ROUND((E105*0.23)+(E107*0.15)+(E113*0.1)+(E115*0.135)+(E103*0.115),1) -> 8.1
B76: PSG 8.3.2 | C76: High Tensile Welded Mesh (with minimum 300mm overlap between panels):
A78: F.1.3.8 | C78: Mesh Ref .245 | D78: m2 | E78: =+ROUND((2.1*4)+26,1) -> 34.4
A80: F.1.3.9 | C80: Mesh Ref .395 | D80: m2 | E80: =+ROUND((23.2*2)+(2.8*2.8*2),1) -> 62.1
B82: 8.4 | C82: Concrete
C84: Supply, mix, place, compact and test:
A86: F.1.3.10 | B86: 8.4.2 | C86: Screed (3:1 sand:cement) of thickness between 100mm and 20mm on roof slab and bunded area within facility | D86: m2 | E86: =23.2+47.8 -> 71.0
A90: CARRIED FORWARD:
A91: BROUGHT FORWARD:
B93: 8.4.3 | C93: Strength Concrete:
C95: Class 20/19 MPa Concrete for:
A97: F.1.3.11 | C97: Mass concrete Layer Beneath RC Pad Foundations | D97: m3 | E97: =+ROUND(1.44*0.25*8,1) -> 2.9
A99: F.1.3.12 | C99: Mass concrete for brickwork infills | D99: m3 | E99: =+ROUND(0.11*0.11*4*8,1) -> 0.4
C101: Class 25/19 MPa Concrete for:
A103: F.1.3.13 | C103: RC Pad Foundations | D103: m3 | E103: =+ROUND(1.2*1.2*0.4*8,1) -> 4.6
A105: F.1.3.14 | C105: RC Ground Beams and Stub Columns | D105: m3 | E105: =ROUND(0.4*4.6*2*8,1) -> 29.4
A107: F.1.3.15 | C107: RC Beams for Roller Shutter Doors | D107: m3 | E107: =+ROUND(4*0.23*0.45*2,1) -> 0.8
A109: F.1.3.16 | C109: RC Surface Beds | D109: m3 | E109: =+ROUND((16.779*0.15)+(22.73*0.35)+(8.73*0.25),1) -> 12.7
A111: F.1.3.17 | C111: RC Apron Slabs | D111: m3 | E111: =+ROUND(35.145*0.125,1) -> 4.4
A113: F.1.3.18 | C113: RC Pump and JoJo Tank Plinths | D113: m3 | E113: =ROUND((2.8*2.8*0.35)+(0.8*0.8*0.35),1) -> 3.0
A115: F.1.3.19 | C115: Class 30/19 MPa Concrete with waterproofing admixture ("Admix" by Xypex or similar approved) for top of rib and block roof slab | D115: m3 | E115: =+ROUND(47.716*0.06,1) -> 2.9
B117: 8.4.4 | C117: Unformed Surface Finishes
A119: F.1.3.20 | C119: a) Wood-Floated Finish to aprons, plinths, roof slab, support beams etc. | D119: m2 | E119: =ROUND(47.8+(2.8*2.8)+(0.8*0.8)+7+35.2,1) -> 98.5
A121: F.1.3.21 | C121: c) Power-floated finish to top of RC surface beds | D121: m2 | E121: =16.8+8.8 -> 25.6
B123: 8.5 | C123: Joints:
C125: Key-less Saw-Cut Joint as per Detail 13 on Drg D34843.00C-134-07
A127: F.1.3.22 | C127: 40 x 3mm thick initial saw-cut not later than 2 days of casting | D127: m | E127: 8.0
A129: F.1.3.23 | C129: 20 x 8 mm thick reaming out of saw-cut 21 days after casting | D129: m | E129: =E127 -> 8.0
A131: F.1.3.24 | C131: 10mm Ø Bond-Breaking Cord ("Duracord" by ABE or similar approved) | D131: m | E131: =E129 -> 8.0
A133: F.1.3.25 | C133: Plug 10 x 8 mm void with approved polysulphide joint sealant ("Sikaflex" by Sika or similar approved) | D133: m | E133: =E131 -> 8.0
A135: CARRIED FORWARD:
A136: BROUGHT FORWARD:
C138: Keyed Construction Joint as per Detail 14 on Drg D34843.00C-134-07
A140: F.1.3.26 | C140: 30 x 20 mm Key Joint Between Panels | D140: m | E140: =13+(1.1*4)+2+4 -> 23.4
A142: F.1.3.27 | C142: 20 x 8 mm thick reaming out of saw-cut 21 days after casting | D142: m | E142: =E140 -> 23.4
A144: F.1.3.28 | C144: 10mm Ø Bond-Breaking Cord ("Duracord" by ABE or similar approved) | D144: m | E144: =E142 -> 23.4
A146: F.1.3.29 | C146: Plug 10 x 8 mm void with approved polysulphide joint sealant ("Sikaflex" by Sika or similar approved) | D146: m | E146: =E144 -> 23.4
C148: Isolation Joint as per Detail 15 on Drg D34843.00C-134-07
A150: F.1.3.30 | C150: 350 x 10 mm Thick Polyethylene Joint Former ("Jointex" by Sondor or similar approved) with hinged 10 x 10 mm temporary blocking piece | D150: m | E150: =8.1+2.8+7.9 -> 18.8
A152: F.1.3.31 | C152: 250 x 10 mm Thick Polyethylene Joint Former ("Jointex" by Sondor or similar approved) with hinged 10 x 10 mm temporary blocking piece | D152: m | E152: 8.1
A154: F.1.3.32 | C154: 150 x 10 mm Thick Polyethylene Joint Former ("Jointex" by Sondor or similar approved) with hinged 10 x 10 mm temporary blocking piece | D154: m | E154: =1.9+10.1+1.2 -> 13.2
A156: F.1.3.33 | C156: 100 x 10 mm Thick Polyethylene Joint Former ("Jointex" by Sondor or similar approved) with hinged 10 x 10 mm temporary blocking piece | D156: m | E156: 34.3
A158: F.1.3.34 | C158: Plug 10 x 10 mm void with approved polysulphide joint sealant ("Sikaflex" by Sika or similar approved) | D158: m | E158: =SUM(E150:E156) -> 74.4
C160: Slip Joints:
A162: F.1.3.35 | C162: 2No. Layers of 3-ply malthoid in 230mm thick brickwork wall for roller shutter doors | D162: m | E162: =+ROUND(0.88*2,1) -> 1.8
A164: F.1.3.36 | C164: 2No. Layers of 3-ply malthoid in 110mm thick brickwork upstand on roof slab | D164: m | E164: 32.6
A166: F.1.3.37 | B166: 8.6 | C166: Supply and install 200mm thick "Rib and Block" Slab complete with mild steel lattice girders in accordance with supplier recommendations | D166: m2 | E166: 52.0
A168: CARRIED FORWARD:
A169: BROUGHT FORWARD:
A171: F.1.4 | C171: BUILDING WORKS:
A173: F.1.4.1 | B173: PS.28 | C173: 230mm Thick Double-Skin Load-Bearing NFX Clay Foundation Brickwork with 14 MPa Compressive Strength Jointed in Class II Mortar. Rate to include for "Brickseal" and Brickforce every third course. | D173: m2 | E173: =+(4.5*1*2)+(12.6*1*2) -> 34.2
A175: F.1.4.2 | B175: PS.28 | C175: 230mm Thick Double-Skin Load-Bearing Clay Facebrick with 14 MPa Compressive Strength Jointed in Class II Mortar. Rate to include for "Brickseal" and Brickforce every third course. | D175: m2 | E175: =+(4.5*3.6*2)+(12.6*3.6*2) -> 123.1 | K175: 1525
A177: F.1.4.3 | C177: 150 x 230mm thick air bricks | D177: No. | E177: =34*2 -> 68.0
A179: F.1.4.4 | C179: 250 micron "Gunplas" DPC Layer beneath surface beds and apron slabs. Soil poisoning beneath where applicable. | D179: m2 | E179: 94.0 | K179: 55.30140001
A181: F.1.4.5 | B181: PS.XX | C181: Supply and Install 2000 high x 940mm wide Galvanised Steel Security Door with 500 x 500 Louvre at bottom of door (Trox Technic or similar approved) | D181: No. | E181: 2.0
A183: F.1.4.6 | B183: PS.XX | C183: Supply and Install 2500 high x 3000mm wide Galvanised Steel Manually operated roller shutter door | D183: No. | E183: 2.0
A185: F.1.4.7 | C185: DN100 epoxy-coated cast iron/ductile iron full bore outlet cast into surface bed and roof slab with 90 degree outlet (Saint-Gobain or similar approved) | D185: No. | E185: 3.0
A187: F.1.4.8 | C187: DN110 uPVC pipe for downpipes and buried stormwater outlet complete with all bends and junctons | D187: m | E187: 12.0
A189: F.1.4.9 | C189: Supply and Install 10 kℓ capacity UV-resistant plastic water tank (JoJo tanks or similar approved) C/W inlet, outlet and overflow connections and tie-down bolts | D189: No. | E189: 1.0
A191: F.1.4.10 | B191: PS.36.2 | C191: Supply and Install "Torch-On" Waterproofing Membrane (Derbit SP FR or similar approved) with 10-year warranty including for primer and overcoat in line with supplier recommendations | D191: m2 | E191: 55.3
A193: F.1.4.11 | B193: PS.36.2 | C193: Supply and Install waterproofing membrane in bunded area ("Cemflex" by Sika or similar approved) including for all primers and overcoats | D193: m2 | E193: =ROUND(2.85*7.4,1) -> 21.1
A195: TOTAL SCHEDULE F.1 CARRIED FORWARD TO SUMMARY
A197: F.2 | C197: BYPASS ISOLATION VALVE
A199: F.2.1 | B199: SANS 1200 C | C199: SITE CLEARANCE
A201: F.2.1.1 | B201: 8.2.1 | C201: Clear and Grub Site for Bypass Isolation Valve Chamber | D201: m2 | E201: =ROUND(2.8*2.4,1) -> 6.7
A203: F.2.1.2 | B203: PSC 8.2.10 | C203: Remove 150mm thick (nominal) layer of topsoil, reinstate or spread on site in designated areas | D203: m2 | E203: =E201 -> 6.7
A205: F.2.1.3 | B205: PSC 8.2.13 | C205: Break out 600 x 600mm hole in existing 230mm thick chlorine contact tank wall for new scour pipe | D205: No. | E205: 1.0
A207: F.2.1.4 | B207: PSC.8.2.7 | C207: Dismantle and remove existing DN300 Asbestos Cement (Class C) pipeline | D207: m | E207: 4.0
A209: F.2.2 | B209: SANS 1200 D | C209: EARTHWORKS
A211: F.2.2.1 | B211: 8.3.2 | C211: a) Excavation in all materials for bypass isolation valve chamber, use for embankment or backfill or spread on site in designated areas | D211: m3 | E211: =ROUND(2.8*2.4*2+(6*2*0.9),1) -> 24.2
A213: F.2.2.2 | B213: PSD 8.3.14 | C213: Profile, spread, rip, recompact & test in situ material to 93% MOD AASHTO in 150 mm thick layers | D213: m3 | E213: =ROUND(2.4*2.8*0.15,1) -> 1.0
A215: F.2.3 | B215: SANS 1200 G | C215: CONCRETE (STRUCTURAL)
B217: 8.2 | C217: Formwork
C219: Supply, erect, bind, handle and take down:
A221: F.2.3.1 | B221: 8.2.1 | C221: Rough Vertical Formwork to Chamber Base Slab & Blinding Layer | D221: m2 | E221: =+ROUND((2.4*0.3*2)+(2.8*0.3*2),1) -> 3.1
B223: 8.2.2 | C223: Smooth Formwork
C225: Vertical To:
A227: F.2.3.2 | C227: Chamber Walls | D227: m2 | E227: =+ROUND((1.5*2.8*2)+(1.5*2.4*2)+(1.5*2.3*2)+(1.5*1.9*2),1) -> 28.2
A229: F.2.3.3 | C229: Chamber Roof Slab | D229: m2 | E229: =+ROUND((2.4*0.2*2)+(2.8*0.2*2),1) -> 2.1
C231: Horizontal To:
A233: F.2.3.4 | C233: Underside of Chamber Roof Slab | D233: m2 | E233: =+ROUND(2.4*1.9,1) -> 4.6
A236: CARRIED FORWARD:
A237: BROUGHT FORWARD:
B239: PSG 8.2.6 | C239: Box-Out Holes / Form Voids
C241: a) Small, circular, of diameter up to and including 0.35m, up to and including 0.5m deep for:
A243: F.2.3.5 | C243: DN300 Stainless Steel Puddle Pipes Through 250mm thick RC Walls | D243: No. | E243: 3.0
A245: F.2.3.6 | C245: DN315 x 600 mm Long PVC Pipe for Drainage Sump (PVC Pipe to be included in tendered rate) | D245: No. | E245: 1.0
A247: F.2.3.7 | C247: d) 600 x 600 opening for manhole cover | D247: No. | E247: 1.0
B249: 8.3 | C249: Reinforcement
C251: Supply, Handle, Bend, Cut and Fix:
A253: F.2.3.8 | B253: 8.3.1 | C253: High Tensile Steel Bars | D253: t | E253: =+ROUND((2.4*2.8*0.13)+(2.35*1.5*0.15),1) -> 1.4
A255: F.2.3.9 | B255: PSG 8.3.2 | C255: Mesh Ref. 395 (minimum 300mm overlap between panels) | D255: m2 | E255: =+ROUND(2.4*2.8*2,1) -> 13.4
B257: 8.4 | C257: Concrete
C259: Supply, mix, place, compact and test:
A261: F.2.3.10 | B261: 8.4.2 | C261: Class 15/19 MPa Concrete Blinding Layer Beneath Chamber base slab | D261: m3 | E261: =+ROUND(2.4*2.8*0.05,1) -> 0.3
A263: F.2.3.11 | B263: 8.4.3 | C263: Class 30/19 MPa Concrete for Base Slab, Walls and Roof Slab | D263: m3 | E263: =+ROUND((2.4*2.8*0.25)+(2.35*1.5)+(2.4*2.8*0.2),1) -> 6.5
A265: F.2.3.12 | B265: 8.4.4 | C265: a) Wood-Floated Finish to top of walls and roof slab | D265: m2 | E265: =+ROUND(2.35+(2.4*2.8),1) -> 9.1
B267: 8.5 | C267: Joints:
A269: F.2.3.13 | C269: 2No. Layers of 3-ply malthoid between top of walls and underside of roof slab | D269: m | E269: 9.4
A271: F.2.3.14 | B271: 8.7 | C271: Grouting of box-out in chlorine contact chamber wall | D271: Sum | E271: 1.0
A279: CARRIED FORWARD:
A280: BROUGHT FORWARD:
C282: Sundry Items:
A284: F.2.3.15 | C284: Supply and Install 2000 mm Long (nominal) Gr 304 Stainless Steel Cat Ladder C/W hoops, rungs, stringers and bolts as per detail 1 on Drg D34843,00C-134-07. | D284: Sum | E284: 1.0
A286: F.2.3.16 | C286: Supply and Install 600 x 600mm Medium Duty Polymer Manhole Cover and Frame (Maverick Trading or similar approved) | D286: No. | E286: 1.0
A288: F.2.3.16 | C288: Supply, install and paint type 5B belltobie manhole covers | D288: No. | E288: 2.0
A290: F.2.4 | B290: SANS 1200 L | C290: MEDIUM PRESSURE PIPELINES
B292: 8.2.5 | C292: Supply and Place Pipes, Valves and Specials (Short Pipe Runs)
C294: Note the following:
C296: (a) All stainless steel pipework to Gr 304 and to have minimum wall thickness of 6mm
C298: (b) All Flanges to be "Raised Face" to Table 1600/3 of SANS 1123
C300: (c) Nominal Pressure Rating = 16 bar
C302: (d) 3mm thick spiral wound ring gaskets ("Maxiflex" by Klinger or similar approved) to be used between all flanged connections
A304: F.2.4.1 | C304: Item 1 - DN300 x 2000mm Long (nominal) Gr 304 Stainless Steel Pipe with plain ends and cut to suit site conditions | D304: No. | E304: 1.0
A306: F.2.4.2 | C306: Item 2 - DN300 Flexible Step Coupling for Stainless Steel Pipes | D306: No. | E306: 1.0
A308: F.2.4.3 | C308: Item 3 - DN300 x 1200mm Long Gr 304 Stainless Steel Puddle Pipe Flanged One End | D308: No. | E308: 2.0
A310: F.2.4.4 | C310: Item 4 - DN300 Flanged Gr 304 Stainless Steel Equal Tee (C/F = 460mm) | D310: No. | E310: 1.0
A312: F.2.4.5 | C312: Item 5 - DN300 Flanged Metal-seated Wedge Gate Valve with Cap-Top | D312: No. | E312: 2.0
A314: CARRIED FORWARD:
A315: BROUGHT FORWARD:
A317: F.2.4.6 | C317: Item 6 - DN300 Flange Adaptor for Stainless Steel Pipe | D317: No. | E317: 1.0
A319: F.2.5 | B319: SANS 1200 LD | C319: SEWERS
A321: F.2.5.1 | B321: 8.2.11 | C321: Tie-In to existing 1000mm diameter precast concrete ring manhole upstream of bypass isolation valve | D321: Sum | E321: 1.0
A366: TOTAL SCHEDULE F.2 CARRIED FORWARD TO SUMMARY
A368: F.3 | C368: CHLORINE CONTACT TANK SCOUR SUMP PUMP STATION
A370: F.3.1 | B370: SANS 1200 C | C370: SITE CLEARANCE
A372: F.3.1.1 | B372: 8.2.1 | C372: Clear and Grub for chlorine contact tank scour sump and chamber | D372: m2 | E372: =ROUND(3.55*2+(0.5*0.5),1) -> 7.4
A374: F.3.1.2 | B374: PSC.8.2.10 | C374: Remove 150mm thick (nominal) layer of topsoil, reinstate or spread on site in designated areas | D374: m2 | E374: =E372 -> 7.4
A376: F.3.1.3 | B376: PSC 8.2.13 | C376: Break out 500 x 500mm hole in existing 230mm thick chlorine contact tank wall for new scour pipe | D376: No. | E376: 1.0
A378: F.3.2 | B378: SANS 1200 D | C378: EARTHWORKS
A380: F.3.2.1 | B380: 8.3.3 | C380: a) Restricted Excavation in all materials for inlet works foundations up to a maximum depth of 3.0 m below ground level, use for embankment, spread on site in designated areas or backfill | D380: m3 | E380: =ROUND(3.55*2*3,1) -> 21.3
A382: F.3.2.2 | C382: b) Extra-Over Item F.3.2.1 above for:
A384: F.3.2.3 | C384: 1) Intermediate Excavation | D384: m3 | E384: 5.0
A386: F.3.2.4 | C386: 2) Hard Rock Excavation | D386: m3 | E386: 2.0
A388: F.3.2.5 | B388: PSD 8.3.7 | C388: Design, Supply, Provision and maintenance of Lateral Support for the duration of construction activities | D388: Sum | E388: 1.0
A390: F.3.2.6 | B390: PSD 8.3.14 | C390: Profile, spread, rip, recompact & test in situ material to 93% MOD AASHTO in 150 mm thick layers | D390: m3 | E390: =ROUND(3.55*2*0.15,1) -> 1.1
A392: F.3.3 | B392: SANS 1200 G | C392: CONCRETE (STRUCTURAL)
B394: 8.2 | C394: Formwork
C396: Supply, erect, bind, handle and take down:
A398: F.3.3.1 | B398: 8.2.1 | C398: Rough Vertical Formwork for RC Base Slabs, Blinding and Valve Pedestal | D398: m2 | E398: =+ROUND((2*0.3*4)+(1.55*0.3*2)+(2*0.3)+(0.4*0.2*4),1) -> 4.3
A405: TOTAL CARRIED FORWARD:
A406: TOTAL BROUGHT FORWARD:
B408: 8.2.2 | C408: Smooth Formwork
C410: Vertical To:
A412: F.3.3.2 | C412: Sump and Chamber Walls | D412: m2 | E412: =+ROUND((1.5*2.8*4)+(1.5*1*2)+(1.3*1*2)+(2*2.8*4)+(1*2)+(1.55*1*2),1) -> 49.9
A414: F.3.3.3 | C414: Sides of Sump and Chamber Roof Slab | D414: m2 | E414: =+ROUND((3.55*0.2*2)+(2*0.2*2),1) -> 2.2
C416: Horizontal To:
A418: F.3.3.4 | C418: Underside of Sump and Chamber Roof Slab | D418: m2 | E418: =+ROUND(3.55*2,1) -> 7.1
B420: PSG 8.2.6 | C420: Box-Out Holes / Form Voids
C422: a) Small, circular, of diameter up to and including 0.35m, up to and including 0.5m deep for:
A424: F.3.3.5 | C424: DN100 Stainless Steel Puddle Pipes Through 250mm thick RC Walls | D424: No. | E424: 2.0
A426: F.3.3.6 | C426: DN150 Stainless steel puddle pipe through 250mm thick RC wall | D426: No. | E426: 1.0
C428: d) Large, other than circular, of area over 0.1m2 and up to and including 1.0 m2
A430: F.3.3.7 | C430: 600 x 600 x 200mm thick opening for manhole cover | D430: No. | E430: 1.0
A432: F.3.3.8 | C432: 1000 x 1000 x 200mm thick opening for grate | D432: No. | E432: 1.0
A434: F.3.3.9 | B434: PSG 8.2.7 | C434: Shuttering for Pipe penetration through existing 230mm thick brickwork wall | D434: No. | E434: 1.0
B436: 8.3 | C436: Reinforcement
C438: Supply, Handle, Bend, Cut and Fix:
A440: F.3.3.10 | B440: 8.3.1 | C440: High Tensile Steel Bars | D440: t | E440: =+ROUND(((3.55*2*0.25)*0.135)+(((1.75*2.8)+(1.15*1))*0.15),1) -> 1.1
A442: F.3.3.11 | B442: PSG 8.3.2 | C442: Mesh Ref. 395 (minimum 300mm overlap between panels) | D442: m2 | E442: =+ROUND(3.55*2*2,1) -> 14.2
B444: 8.4 | C444: Concrete
C446: Supply, mix, place, compact and test:
A448: F.3.3.12 | C448: Class 15/19 MPa Concrete Blinding Layer and concrete pedestals | D448: m3 | E448: =+ROUND((3.55*2*0.05)+(0.4*0.4*0.2)+(0.05*1*0.5),1) -> 0.4
A450: TOTAL CARRIED FORWARD:
A451: TOTAL BROUGHT FORWARD:
A453: F.3.3.13 | B453: 8.4.3 | C453: Class 30/19 MPa Concrete for Base Slab, Walls and Roof Slab | D453: m3 | E453: =+ROUND((3.55*2*0.25)+(1.75*2.8)+(1.15*1)+(5.74*0.2),1) -> 9.0
A455: F.3.3.14 | B455: 8.4.4 | C455: a) Wood-Floated Finish to top of walls and roof slab | D455: m2 | E455: =+ROUND(1.75+1.15+5.74,1) -> 8.6
... 33 more rows

Sheet F-Sum
B1: SCHEDULE F: UPGRADES TO DISINFECTION FACILITIES
A2: SUMMARY OF SECTIONS - SCHEDULE F
A4: SECTION | B4: DESCRIPTION | F4: AMOUNT
A6: F.1 | B6: SODIUM HYPOCHLORITE GENERATION FACILITY
A8: F.2 | B8: BYPASS ISOLATION VALVE
A10: F.3 | B10: CHLORINE CONTACT TANK SCOUR SUMP PUMP STATION
A12: F | B12: TOTAL SCHEDULE F CARRIED FORWARD TO SUMMARY PAGE (F.1 + F.2 + F.3)

Sheet G
C1: SCHEDULE G: WWTW PIPELINES AND MANHOLES
A2: ITEM | B2: PAYMENT | C2: DESCRIPTION | D2: UNIT | E2: QTY | F2: RATE | G2: AMOUNT
A4: G.1 | B4: SANS 1200 C | C4: SITE CLEARANCE
A6: G.1.1 | B6: 8.2.1 | C6: Clear and Grub for pipe trenches (2m width) | D6: m | E6: =ROUNDUP(SUM(E143:E155),0) -> 2,054.0
A8: G.1.2 | B8: PSC 8.2.10 | C8: Remove 150mm thick (nominal) layer of topsoil, reinstate or spread on site in designated areas | D8: m2 | E8: =+E6*2 -> 4,108.0
B10: PSC 8.2.7 | C10: Dismantle and remove pipework and valves and dispose in approved dump site:
A12: G.1.3 | C12: DN300 Asbestos Cement Pipelines | D12: m | E12: 12.0
A14: G.1.4 | C14: DN150 Asbestos Cement Pipelines | D14: m | E14: =ROUNDUP(31.45+42,0) -> 74.0
A16: G.1.5 | B16: PSC 8.2.17 | C16: Breaking Out of Reinforced Concrete Walkways, Apron Slabs etc. | D16: m3 | E16: 25.0
A18: G.1.6 | B18: PSC 8.2.15 | C18: Removal of asphalt surfacing of nominal 50mm thickness from existing access road with diamond saw | D18: m2 | E18: =(9+9+7+7.5+6)*1.2 -> 46.2
A50: TOTAL SCHEDULE G.1 CARRIED FORWARD TO SUMMARY
A52: G.2 | B52: SANS 1200 DB | C52: EARTHWORKS (PIPE TRENCHES)
B54: PSDB 8.3.2 | C54: Excavation:
C56: a) Excavation in all materials for pipe diameters up to 200mm diameter for trenches of width up to & including 1.8 m, backfill in layers not exceeding 300 mm thickness, compact to 90% MOD AASHTO and dispose of surplus material for all pipe diameters in the following depth categories:
A58: G.2.1 | C58: Over 0.0 m but not exceeding 1.5 m | D58: m | E58: =ROUND($E$6*65%,0) -> 1,335.0
A60: G.2.2 | C60: Over 1.5 m but not exceeding 3.0 m | D60: m | E60: =ROUND($E$6*35%,0) -> 719.0
C62: b) Extra Over Items G.2.1 & G.2.2 for:
A64: G.2.3 | C64: 1) Intermediate Material (provisional) | D64: m3 | E64: =+(($E$58*1.25)+($E$60*2.5))*10% -> 346.6
A66: G.2.4 | C66: 2) Hard Rock Material (provisional) | D66: m3 | E66: =+(($E$58*1.25)+($E$60*2.5))*1.5% -> 52.0
B68: 8.3.3 | C68: Excavation Ancilliaries:
B70: 8.3.3.1 | C70: Make up deficiency in backfill material (Provisional):
A72: G.2.5 | C72: a) From other necessary excavations on site | D72: m3 | E72: =+SUM($E$64:$E$66)*65% -> 259.1
A74: G.2.6 | C74: b) By importation from designated borrow pits | D74: m3 | E74: =+SUM($E$64:$E$66)*30% -> 119.6
A76: G.2.7 | C76: c) By importation from commercial or off-site sources selected by the Contractor | D76: m3 | E76: 10.0
B78: PSD 8.3.4 | C78: Particular Items:
C80: a) Shore Trench Opposite a structure or service for the following depth categories (provisional):
A82: G.2.8 | C82: Over 0.0 m and less than 1.5 m depth | D82: m | E82: 40.0
A84: G.2.9 | C84: Over 0.0 m and less than 3.0 m depth | D84: m | E84: 20.0
C86: c) Road Crossings:
A88: G.2.10 | C88: Supply only of Portland Cement (Stabilising Agent) | D88: kg | E88: =+E90*2200*5% -> 6,352.5
A90: G.2.11 | C90: Supply only of suitable G8 material for soilcrete layers from other scheduled excavations, borrow-pits or commercial / off site sources | D90: m3 | E90: =E18*1.25 -> 57.8
A92: TOTAL CARRIED FORWARD:
A93: TOTAL BROUGHT FORWARD:
A95: G.2.12 | C95: Mixing, Spreading and compaction of soilcrete mixture to 93% MOD AASTO in maximum 150mm thick layers | D95: m3 | E95: =E90 -> 57.8
C97: Supply of PVC Cable Ducts for Pipe Sleeves:
A99: G.2.13 | C99: DN315 | D99: m | E99: 12.0
A101: G.2.14 | C101: DN250 | D101: m | E101: 12.0
A103: G.2.15 | C103: DN160 | D103: m | E103: =12+10 -> 22.0
B105: PSD 8.3.5 | C105: Existing Services that intersect or adjoin a pipe trench:
A107: G.2.16 | C107: a) Services that intersect a trench | D107: No. | E107: 60.0
A109: G.2.17 | C109: b) Services that adjoin a trench | D109: m | E109: 100.0
B111: 8.3.6 | C111: Finishings:
A113: G.2.18 | B113: 8.3.6.1 | C113: c) Reinstate Asphalt of 50mm thickness in roadways | D113: m2 | E113: =E18 -> 46.2
C115: d) Road Crossings:
A117: G.2.19 | C117: Import, spread, compact and test G2 material to 98% MOD AASHTO from commercial sources | D117: m3 | E117: =ROUND(E113*0.3,1) -> 13.9
A119: G.2.20 | C119: Import, spread, compact and test G5 material to 95% MOD AASHTO from commercial sources | D119: m3 | E119: =E117 -> 13.9
A121: G.2.21 | C121: Import, spread, compact and test G7 material to 93% MOD AASHTO from borrow-pits or commercial sources | D121: m3 | E121: =E119 -> 13.9
A137: TOTAL SCHEDULE G.2 CARRIED FORWARD TO SUMMARY
A139: G.3 | B139: SANS 1200 L | C139: MEDIUM PRESSURE PIPELINES
A141: G.3.1 | B141: PSL 8.2.1 | C141: Supply, Lay, Bed, Test and Disinfect Pipes complete with couplings:
A143: G.3.1.1 | C143: DN200 Buttwelded HDPe Pipe (PN10) to SANS ISO 4427 | D143: m | E143: =+ROUNDUP((213+211+115)*110%,0) -> 593.0
A145: G.3.1.2 | C145: DN160 Buttwelded HDPe Pipe (PN10) to SANS ISO 4427 | D145: m | E145: =+ROUNDUP(85*110%,0) -> 94.0
A147: G.3.1.3 | C147: DN110 Buttwelded HDPe Pipe (PN10) to SANS ISO 4427 | D147: m | E147: =ROUNDUP((362+30)*110%,0) -> 432.0
A149: G.3.1.4 | C149: DN90 Buttwelded HDPe Pipe (PN10) to SANS ISO 4427 | D149: m | E149: =ROUNDUP((176)*115%,0) -> 203.0
A151: G.3.1.5 | C151: DN63 HDPe Pipe (PN10) to SANS ISO 4427 C/W PN16 Compression Couplings | D151: m | E151: =ROUND((59)*115%,0) -> 68.0
A153: G.3.1.6 | C153: DN50 HDPe Pipe (PN10) to SANS ISO 4427 C/W PN16 Compression Couplings | D153: m | E153: =ROUND((53+7+35)*115%,0) -> 109.0
A155: G.3.1.7 | C155: DN32 HDPe Pipe (PN10) to SANS ISO 4427 C/W PN16 Compression Couplings | D155: m | E155: =ROUND((8+50+55+35+18+57+1+14+18+27+200)*115%,0) -> 555.0
A157: G.3.2 | B157: 8.2.2 | C157: Extra Over Item G.3.1 for the supplying, laying and bedding of specials C/W couplings (PN16):
C159: Fully Moulded Long-Radius HDPe Bends Suitable for Buttwelding:
A161: G.3.2.1 | C161: DN200 x 90 deg | D161: No. | E161: 12.0
A163: G.3.2.2 | C163: DN200 x 45 deg | D163: No. | E163: 6.0
A165: G.3.2.3 | C165: DN160 x 90 deg | D165: No. | E165: 1.0
A167: G.3.2.4 | C167: DN160 x 45 deg | D167: No. | E167: 1.0
A169: G.3.2.5 | C169: DN110 x 90 deg | D169: No. | E169: 3.0
A171: G.3.2.6 | C171: DN110 x 45 deg | D171: No. | E171: 4.0
C173: Long-Radius HDPe Mitre-type Special Bends suitable for buttwelding in the following angle categories:
A175: G.3.2.7 | C175: DN200 x (10 - 44 deg) | D175: No. | E175: 4.0
A177: G.3.2.8 | C177: DN200 x (46 - 89 deg) | D177: No. | E177: 3.0
A179: G.3.2.9 | C179: DN160 x (10 - 44 deg) | D179: No. | E179: 2.0
A181: G.3.2.10 | C181: DN160 x (46 - 89 deg) | D181: No. | E181: 2.0
A183: TOTAL CARRIED FORWARD:
A184: TOTAL BROUGHT FORWARD:
C186: HDPe Fittings for Second Class and Potable Water Pipelines (PN16):
A188: G.3.2.11 | C188: DN90 x DN63 Tee | D188: No. | E188: 1.0
A190: G.3.2.12 | C190: DN50 x DN32 Reducing Tee | D190: No. | E190: =1+1+1 -> 3.0
A192: G.3.2.13 | C192: DN63 x DN32 Reducing Tee | D192: No. | E192: 1.0
A194: G.3.2.14 | C194: DN50 x DN63 Enlarging Tee | D194: No. | E194: 1.0
A196: G.3.2.15 | C196: DN90 x DN32 Clamp Saddle Female | D196: No. | E196: 1.0
A198: G.3.2.16 | C198: DN90 x DN50 Reducer | D198: No. | E198: 1.0
A200: G.3.2.17 | C200: DN50 x DN32 Reducer | D200: No. | E200: 2.0
A202: G.3.2.18 | C202: DN32 HDPe Compression Male Adaptor | D202: No. | E202: 1.0
C204: Buttwelded HDPe Stubs with Stainless Steel Backing Flanges (PN16):
A206: G.3.2.19 | C206: DN200 | D206: No. | E206: 2.0
A208: G.3.2.20 | C208: DN160 | D208: No. | E208: 1.0
A210: G.3.2.21 | C210: DN110 | D210: No. | E210: 1.0
A212: G.3.3 | B212: PSL 8.2.11.b) | C212: Anchor Blocks, Thurst Blocks & Pedestals:
A214: G.3.3.1 | C214: Class 20/19 MPa Concrete | D214: m3 | E214: 15.0
A216: G.3.3.2 | C216: Rough Vertical Formwork | D216: m2 | E216: 50.0
A218: G.3.4 | B218: PSL 8.2.16 | C218: Install Concrete Pipe Markers Approximately 0.3 - 0.5m away from pipe centreline complete as per Detail 12 on Drg D34843-00C-134-07. Rate to include for materials, excavation, painting, concrete encasement etc. | D218: No. | E218: =+ROUNDUP(SUM(E143:E155)/50,0) -> 42.0
A220: G.3.5 | B220: PSL 8.2.17 | C220: Construct standpipe complete as per detail 10 on Drg D34843-00C-134-07. Rate to include for all fittings, valves etc. | D220: No. | E220: 8.0
A227: TOTAL SCHEDULE G.3 CARRIED FORWARD TO SUMMARY:
A229: G.4 | B229: SANS 1200LB | C229: BEDDING (PIPES)
B231: PSLB 8.2.1 | C231: Provision of bedding from trench excavation (provisional):
A233: G.4.1 | C233: b) Selected Fill Material | D233: m3 | E233: =ROUNDUP(40%*((0.124*$E$155)+(0.142*($E$147+$E$149))+(0.152*($E$145+$E$282))+(0.16*($E$143+$E$280))+(0.183*$E$278)),1) -> 121.1
B235: PSL 8.2.2 | C235: Supply Only of bedding by Importation (note: all importation of bedding material, regardless of distance, shall be regarded as freehaul)
B237: PSLB 8.2.2.1 | C237: From other necessary excavations (provisional):
A239: G.4.2 | C239: b) Selected Fill Material | D239: m3 | E239: =ROUNDUP(40%*(300),1) -> 120.0
B241: PSLB 8.2.2.2 | C241: From borrow-pits (provisional):
A243: G.4.3 | C243: a) Selected granular material | D243: m3 | E243: =ROUNDUP(55%*440,1) -> 242.0
A245: G.4.4 | C245: b) Selected Fill Material | D245: m3 | E245: =ROUNDUP(20%*(300),1) -> 60.0
B247: PSLB 8.2.2.3 | C247: From commercial sources (provisional):
A249: G.4.5 | C249: a) Selected granular material | D249: m3 | E249: =ROUNDUP(55%*(440),1) -> 242.0
A251: G.4.6 | C251: b) Selected Fill Material | D251: m3 | E251: =ROUNDUP(10%*(300),1) -> 30.0
B253: PSLB 8.2.4 | C253: Encasement of Pipes of OD between 32 - 355 mm: in Concrete (Provisional)
A255: G.4.7 | C255: a) Rough Vertical Formwork for Concrete Encasement | D255: m2 | E255: 25.0
A257: G.4.8 | C257: b) Class 20 / 19 MPa Concrete (Allow for protective pipe wrapping) | D257: m3 | E257: 5.0
A272: TOTAL SCHEDULE G.4 CARRIED FORWARD TO SUMMARY:
A274: G.5 | B274: SANS 1200 LD | C274: SEWERS
A276: G.5.1 | B276: 8.2.1 | C276: Supply, Lay, Joint, Bed and Test the following pipelines:
A278: G.5.1.1 | C278: DN315 Class 34 uPVC Pipe | D278: m | E278: =+ROUNDUP(45*115%,0) -> 52.0
A280: G.5.1.2 | C280: DN200 Class 34 uPVC Pipe | D280: m | E280: =E!E89 -> 45.0
A282: G.5.1.3 | C282: DN160 Class 34 uPVC Pipe | D282: m | E282: =ROUNDUP(42+38+32*110%,0) -> 116.0
A284: G.5.2 | B284: 8.2.3 | C284: Construct concrete manhole using 1000mm ND precast concrete rings complete as per Detail B on Drawing D34843.00C-133-01 including light duty cover and frame, excavation, and Type 'A' benching etc. for the following depth categories:
A286: G.5.2.1 | C286: Over 0.0 m and less than 1.5 m deep | D286: No. | E286: 6.0
A288: G.5.2.2 | C288: Over 1.5 m and less than 2.5 m deep | D288: No. | E288: 4.0
A290: G.5.2.3 | C290: Over 2.5 m and less than 3.5 m deep | D290: No. | E290: 2.0
A292: G.5.3 | B292: PS.27 | C292: Jetting / Clearing of Existing Sewer Pipelines (Including for all equipment and material):
A294: G.5.3.1 | C294: DN300 Asbestos Cement Pipelines | D294: m | E294: 360.0
A296: G.5.3.2 | C296: DN250 Asbestos Cement Pipelines | D296: m | E296: 25.0
A298: G.5.3.3 | C298: DN150 Asbestos Cement Pipelines | D298: m | E298: 260.0
A300: G.5.4 | B300: PS.26 | C300: Unblocking and draining of Existing Silted / Clogged Sewer Manholes up to a diameter of 1500mm to a maximum depth of 4.0 m | D300: No. | E300: 16.0
A315: TOTAL CARRIED FORWARD:
A316: TOTAL BROUGHT FORWARD:
A318: G.5.5 | B318: 8.2.11 | C318: Connection to Existing Sewers:
A320: G.5.5.1 | C320: Tie in to existing Humus Sludge sump at sludge pump station with DN200 x 1000mm Long Gr 304 Stainless steel puddle pipe (flanged one end). Rate to include for breaking out opening in sump, the cost of the pipe and making good with approved non-shrink grout | D320: Sum | E320: 1.0
A322: G.5.5.2 | C322: Tie in to existing Siphon dosing chamber with DN200 x 1000mm Long Gr 304 Stainless steel puddle pipe (flanged one end). Rate to include for breaking out opening in chamber, the cost of the pipe, removal of the existing asbestos pipe penetration and making good with approved non-shrink grout | D322: Sum | E322: 1.0
A324: G.5.5.3 | C324: Tie in to existing precast concrete ring manhole with new DN315 uPVC emergency overflow pipe. Rate to include for the breaking out of the opening and making good with non-shrink grout. | D324: Sum | E324: 1.0
A326: G.5.5.4 | C326: Tie in to existing precast concrete primary sludge sump inlet manhole with new DN200 uPVC Sludge Outlet Pipeline. Rate to include for breaking out of the opening and making good with non-shrink grout | D326: Sum | E326: 1.0
A328: G.5.5.5 | C328: Tie-in to existing precast concrete ring manhole at existing Sludge drying bed supernatant submersible pump station with DN100 x 1000mm Long Stainless steel puddle pipe (flanged one end). Rate to include for breaking out opening in sump / manhole, the cost of the pipe and making good with approved non-shrink grout. | D328: Sum | E328: 1.0
A340: TOTAL SCHEDULE G.5 CARRIED FORWARD TO SUMMARY:

Sheet G-Sum
B1: SCHEDULE G: WWTW PIPELINES AND MANHOLES
A2: SUMMARY OF SECTIONS - SCHEDULE G
A4: SECTION | B4: DESCRIPTION | F4: AMOUNT
A6: G.1 | B6: SITE CLEARANCE
A8: G.2 | B8: EARTHWORKS (PIPE TRENCHES)
A10: G.3 | B10: MEDIUM PRESSURE PIPELINES
A12: G.4 | B12: BEDDING (PIPES)
A14: G.5 | B14: SEWERS
A16: G | B16: TOTAL SCHEDULE G CARRIED FORWARD TO SUMMARY PAGE (G.1 + G.2 + G.3 + G.4 + G.5)

Sheet H
A1: SCHEDULE H: REPAIRS, ALTERATIONS AND UPGRADES TO EMERGENCY OVERFLOW PONDS
A2: ITEM | B2: PAYMENT | C2: DESCRIPTION | D2: UNIT | E2: QTY | F2: RATE | G2: AMOUNT
A4: H.1 | C4: REHABILITATION OF OVERFLOW PONDS
A6: H.1.1 | B6: SANS 1200 D | C6: EARTHWORKS
A8: H.1.1.1 | B8: 8.3.2 | C8: a) Excavation in all materials and use for embankment or dispose | D8: m3 | E8: 100.0
B10: PSD 8.3.4 | C10: Import, Spread, Compact and Test Material in layers no greater than 300mm thickness from commercial sources, borrow-pits or quarries:
A12: H.1.1.2 | C12: G5 Material to 95% MOD AASHTO | D12: m3 | E12: =+ROUND(E42*0.15,1) -> 121.4
A14: H.1.2.3 | B14: PSD 8.3.14 | C14: Profile, spread, rip, recompact & test in situ material to 93% MOD AASHTO in 150 mm thick layers | D14: m3 | E14: =E12 -> 121.4
A16: H.1.2 | B16: SANS 1200 G | C16: CONCRETE (STRUCTURAL)
B18: 8.2 | C18: Formwork
C20: Supply, erect, bind, handle and take down:
B22: 8.2.1 | C22: Rough Formwork:
A24: H.1.2.1 | C24: Vertical To New RC Base Slab Panels of Overflow Ponds | D24: m2 | E24: =+ROUND((26+11+11+11+26+12+11+11+15+9+9+15+9+9)*0.25,1) -> 46.3
B26: 8.3 | C26: Reinforcement
C28: Supply, Handle, Bend, Cut and Fix:
A30: H.1.2.2 | B30: 8.3.1 | C30: High Tensile Steel Bars | D30: t | E30: =ROUND(0.1*E38,1) -> 16.2
B32: 8.4 | C32: Concrete
C34: Supply, mix, place, compact and test:
A36: H.1.2.3 | B36: 8.4.2 | C36: Class 15/19 MPa Concrete Blinding Layer Beneath Foundations | D36: m3 | E36: =+ROUND(105%*((120.8*0.05)+(114.8*0.05)+(278.9*0.05)+(256.4*0.05)),1) -> 40.5
A38: H.1.2.4 | B38: 8.4.3 | C38: Class 35/19 MPa for new Concrete Base Slab | D38: m3 | E38: =+ROUND(105%*((120.8*0.2)+(114.8*0.2)+(278.9*0.2)+(256.4*0.2)),1) -> 161.9
B40: 8.4.4 | C40: Unformed Surface Finishes
A42: H.1.2.5 | C42: a) Wood-floated finish to top of new concrete base slab | D42: m2 | E42: =ROUND(E38/0.2,1) -> 809.5
A47: TOTAL CARRIED FORWARD:
A48: TOTAL BROUGHT FORWARD:
B50: 8.5 | C50: Construction Joint as per Detail 11 on Drg D34843-00C-143-07.
A52: H.1.2.6 | C52: 30 x 20 mm Keyed Joint Between Panels | D52: m | E52: =+ROUND(E24/0.25,1) -> 185.2
A54: H.1.2.7 | C54: Apply 2 layers of approved bitumen-based bond breaker between panels | D54: m | E54: =E52 -> 185.2
A56: H.1.2.8 | C56: 10mm Ø Bond-Breaking Cord ("Duracord" by ABE or similar approved) | D56: m | E56: =E54 -> 185.2
A58: H.1.2.9 | C58: Plug 10 x 8 mm void with approved polysulphide joint sealant ("Sikaflex" by Sika or similar approved) | D58: m | E58: =E56 -> 185.2
A60: H.1.2.10 | C60: 250 mm x 2 mm thick Sikadur Combiflex Bandage with Sikadur 31DW 2-part Epoxy Adhesive (Sika or similar approved) | D60: m | E60: =E58 -> 185.2
A96: TOTAL SCHEDULE H.1 CARRIED FORWARD TO SUMMARY:
A98: H.2 | C98: NEW OVERFLOW CHAMBERS:
C100: Refer to Drg D34843-00C-134-05:
A102: H.2.1 | B102: SANS 1200 C | C102: SITE CLEARANCE
A104: H.2.1.1 | B104: PSC 8.2.17 | C104: Breaking Out of Reinforced Concrete Walkway and wall to accommodate overflow chamber | D104: m3 | E104: =ROUND(2.1*2*0.3*2*115%,1)*2 -> 5.8
A106: H.2.2 | B106: SANS 1200 D | C106: EARTHWORKS
A108: H.2.2.1 | B108: PSD 8.3.14 | C108: Profile, spread, rip, recompact & test in situ material to 93% MOD AASHTO in 150 mm thick layers | D108: m3 | E108: =ROUND(2.1*2*0.15,1)*2 -> 1.2
A110: H.2.3 | B110: SANS 1200 G | C110: CONCRETE (STRUCTURAL)
B112: 8.2 | C112: Formwork
C114: Supply, erect, bind, handle and take down:
A116: H.2.3.1 | B116: 8.2.1 | C116: Rough vertical formwork to chamber base slab | D116: m2 | E116: =+ROUND((2*0.2*2)+(2.1*0.2*2),1)*2 -> 3.2
A118: H.2.3.2 | B118: 8.2.2 | C118: Smooth vertical formwork to Chamber RC Walls and Opening | D118: m2 | E118: =+ROUND(((1.6*2*2)+(1.6*2.1*2)+(1.6*1.6*2)+(1.6*1.5*2))*2,1) -> 46.1
B120: PSG 8.2.6 | C120: Box-Out Holes / Form Voids:
A122: H.2.3.3 | C122: a) DN300 x Stainless Steel Puddle Pipe Through Chamber and Overflow Pond Wall | D122: No. | E122: 2.0
A124: H.2.3.4 | C124: d) 1000 x 200 mm Inlet Void | D124: No. | E124: 2.0
B126: 8.3 | C126: Reinforcement
C128: Supply, Handle, Bend, Cut and Fix:
A130: H.2.3.5 | B130: 8.3.1 | C130: High Tensile Steel Bars | D130: t | E130: =+ROUND(0.18*E140,1) -> 1.2
A132: H.2.3.6 | B132: PSG 8.3.2 | C132: Mesh Ref .395 (minimum 300mm overlap) | D132: m2 | E132: =ROUND(2.1*2*2,1) -> 8.4
B134: 8.4 | C134: Concrete
C136: Supply, mix, place, compact and test:
B138: 8.4.3 | C138: Strength Concrete:
A140: H.2.3.7 | C140: Class 30/19 MPa Concrete for Chamber Base Slab and Walls | D140: m3 | E140: =ROUND((1.8*1.4)+(2.1*2*0.2),1)*2 -> 6.8
A142: TOTAL CARRIED FORWARD:
A143: TOTAL BROUGHT FORWARD:
A145: H.2.3.8 | C145: Class 20/19 MPa Concrete for Benching | D145: m3 | E145: =+ROUND(0.288*1.5*2,1) -> 0.9
A147: H.2.3.9 | C147: Class 15/19 MPa Concrete Blinding Layer | D147: m3 | E147: =ROUND(2.1*2*0.05*2,1) -> 0.4
A149: H.2.3.10 | B149: 8.4.4 | C149: a) Wood-floated finish to top of chamber walls | D149: m2 | E149: =1.8*2 -> 3.6
B151: 8.5 | C151: Isolation Joint as per Detail 15 on Drg D34843-00C-134-07
A153: H.2.3.11 | C153: 200 x 10 mm Thick Polyethylene Joint Former ("Jointex" by Sondor or similar approved) with hinged 10 x 10 mm temporary blocking piece | D153: m | E153: =+(2.1+2.1+2+2)*2 -> 16.4
A155: H.2.3.12 | C155: Plug 10 x 10 mm void with approved polysulphide joint sealant ("Sikaflex" by Sika or similar approved) | D155: m | E155: =E153 -> 16.4
A157: H.2.3.13 | B157: 8.7 | C157: Grouting of Stainless Steel Puddle Pipe Through Existing RC Wall with Sikagrout 212 by Sika or similar approved | D157: Sum | E157: 1.0
A159: H.2.4 | B159: SANS 1200 L | C159: MEDIUM PRESSURE PIPELINES
A161: H.2.4.1 | B161: 8.2.5 | C161: Supply and Install DN300 x 2100mm Long Gr 304 Stainless Steel Puddle Pipe (Plain Ends) with minimum 6mm wall thickness | D161: No. | E161: 2.0
A163: H.2.5 | C163: SUNDRIES:
A165: H.2.5.1 | C165: 1600 x 1500mm FRP Grating (38 x 51mm Apertures) C/W Type "M" clips and G.M.S Frame (cast into concrete) with fishtail lugs welded at 200mm C/C | D165: No. | E165: 2.0
A183: TOTAL SCHEDULE H.2 CARRIED FORWARD TO SUMMARY:
A185: H.3 | C185: NEW SCOUR VALVE CHAMBERS & PEDESTRIAN BRIDGES
C187: Refer to Drg D34843-00C-134-06
A189: H.3.1 | B189: SANS 1200 C | C189: SITE CLEARANCE
A191: H.3.1.1 | B191: PSC 8.2.17 | C191: Breaking Out of Reinforced Concrete Walkway and wall to accommodate pedestrian bridge and scour pipe | D191: m3 | E191: =ROUND(1.3*0.5*0.3*2*115%,1)*2 -> 0.8
A193: H.3.2 | B193: SANS 1200 G | C193: CONCRETE (STRUCTURAL)
B195: 8.2 | C195: Formwork
C197: Supply, erect, bind, handle and take down:
A199: H.3.2.1 | B199: 8.2.1 | C199: Rough Formwork for Concrete Pedestal | D199: m2 | E199: =ROUND(0.35*0.05*4*2,1) -> 0.1
B201: 8.2.2 | C201: Smooth Formwork:
C203: Vertical To:
A205: H.3.2.2 | C205: Chamber RC Walls | D205: m2 | E205: =+ROUND((1.6*2.5*4*2)+(2.1*2.5*4*2),1) -> 74.0
A207: H.3.2.3 | C207: Sides and Upstand of Pedestrian Walkway | D207: m2 | E207: =ROUND((0.4*4*2*2)+(0.15*4*2*2)+(0.4*1.3*2),1) -> 9.8
C209: Horizontal To:
A211: H.3.2.4 | C211: Underside of Pedestrian Bridge | D211: m2 | E211: =ROUND(1.3*4*2,1) -> 10.4
B213: 8.2.6 | C213: Box-Out Holes / Form Voids:
A215: H.3.2.5 | C215: a) For DN150 Stainless Steel Puddle Pipe Through Chamber and Existing Walls | D215: No. | E215: 2.0
A217: H.3.2.6 | C217: d) 1000 x 400mm Opening in 250mm thick Chamber Wall | D217: No. | E217: 2.0
B219: 8.3 | C219: Reinforcement
C221: Supply, Handle, Bend, Cut and Fix:
A223: H.3.2.7 | B223: 8.3.1 | C223: High Tensile Steel Bars | D223: t | E223: =+ROUND((0.18*E242)+(0.1*E244),1) -> 2.1
A231: TOTAL CARRIED FORWARD:
A232: TOTAL BROUGHT FORWARD:
B234: 8.4 | C234: Concrete
C236: Supply, mix, place, compact and test:
B238: 8.4.3 | C238: Strength Concrete:
C240: Class 30/19 MPa Concrete for:
A242: H.3.2.8 | C242: Chamber Walls | D242: m3 | E242: =ROUND(1.85*2.5*2,1) -> 9.3
A244: H.3.2.9 | C244: Pedestrian Bridge and Ground Beam | D244: m3 | E244: =+ROUND((0.4*4*2)+(0.5*0.5*1.3*2),1) -> 3.9
A246: H.3.2.10 | C246: Class 15/19 MPa Concrete for blinding and valve pedestal: | D246: m3 | E246: =+ROUND((0.35*0.35*0.05*2)+(0.5*1.3*0.05*2),1) -> 0.1
A248: H.3.2.11 | B248: 8.4.4 | C248: a) Wood-floated Finish to top of chamber walls and pedestrian walkways | D248: m2 | E248: =ROUND((1.85*2)+(1.3*4*2),1) -> 14.1
B250: 8.5 | C250: Joints
C252: Isolation Joint between pedestrian walkway and existing RC walkway:
A254: H.3.2.12 | C254: 500 x 10 mm Thick Polyethylene Joint Former ("Jointex" by Sondor or similar approved) with hinged 10 x 10 mm temporary blocking piece | D254: m | E254: =+(1.3*2)+(0.5*2*2) -> 4.6
A256: H.3.2.13 | C256: 200 x 10 mm Thick Polyethylene Joint Former ("Jointex" by Sondor or similar approved) with hinged 10 x 10 mm temporary blocking piece | D256: m | E256: =1.3*2 -> 2.6
A258: H.3.2.14 | C258: Plug 10 x 10 mm void with approved polysulphide joint sealant ("Sikaflex" by Sika or similar approved) | D258: m | E258: =SUM(E254:E256) -> 7.2
A260: H.3.2.15 | C260: Slip Joint (Kilcher Bearing) between underside of pedestrian walkway and top of RC chamber walls | D260: m | E260: 2.6
A262: H.3.2.16 | B262: 8.7 | C262: Grouting of DN150 Stainless Steel Puddle Pipe Through Existing RC Wall and making good overbreak with Sikagrout 212 by Sika or similar approved | D262: Sum | E262: 1.0
A270: TOTAL CARRIED FORWARD:
A271: TOTAL BROUGHT FORWARD:
A273: H.3.3 | B273: SANS 1200 L | C273: MEDIUM PRESSURE PIPELINES
B275: 8.2.5 | C275: Supply and Place Pipes, Valves and Specials (Short Pipe Runs)
C277: Note the following:
C279: (a) All stainless steel pipework to Gr 304 and to have minimum wall thickness of 6mm
C281: (b) All Flanges to be "Raised Face" to Table 1600/3 of SANS 1123
C283: (c) Nominal Pressure Rating = 16 bar
C285: (d) 3mm thick spiral wound ring gaskets ("Maxiflex" by Klinger or similar approved) to be used between all flanged connections
A287: H.3.3.1 | C287: DN150 Flanged Metal-Seated Wedge Gate Valve with 3000mm long (nominal) S/S Extension Spindle and Hand-Wheel | D287: No. | E287: 2.0
A289: H.3.3.2 | C289: DN150 x 5700mm Long (nominal) Gr 304 Stainless Steel Puddle Pipe flanged one end | D289: No. | E289: 2.0
A291: H.3.4 | C291: SUNDRIES:
A293: H.3.4.1 | C293: 1600 x 1600mm FRP Grating (38 x 51mm Apertures) C/W Type "M" clips and G.M.S Frame (cast into concrete) with fishtail lugs welded at 200mm C/C | D293: No. | E293: 2.0
A295: H.3.4.2 | C295: 1000mm High GRP/FRP Hand railings complete as per detail 3 on Drg D34843-00C-134-06 including for chemical anchors | D295: m | E295: 16.0
A297: H.3.4.3 | C297: Stainless Steel Brackets for Extension Spindle, complete as per detail 2 on Drg D34843-00C-134-06 | D297: No. | E297: 6.0
A305: TOTAL SCHEDULE H.3 CARRIED FORWARD TO SUMMARY:
A307: H.4 | C307: NEW EMERGENCY OVERFLOW SPILLWAYS
C309: Refer to Detail 6 on Drg D34843-00C-134-07
A311: H.4.1 | B311: SANS 1200 C | C311: SITE CLEARANCE
A313: H.4.1.1 | B313: PSC 8.2.17 | C313: Breaking Out of Reinforced Concrete Walkway to accommodate new spillway | D313: m3 | E313: =ROUND(4*2*0.3*2,1) -> 4.8
A315: H.4.2 | B315: SANS 1200 D | C315: EARTHWORKS
A317: H.4.2.1 | B317: 8.3.2 | C317: a) Excavation in all materials and use for embankment or dispose | D317: m3 | E317: =ROUND(4*6*0.5*2,1) -> 24.0
A319: H.4.2.2 | B319: PSD 8.3.14 | C319: Profile, spread, rip, recompact & test in situ material to 90% MOD AASHTO in 150 mm thick layers | D319: m3 | E319: =ROUND(4*6*0.15*2,1) -> 7.2
A321: H.4.3 | B321: SANS 1200 DK | C321: GABIONS AND PITCHING
B323: 8.2.2 | C323: Reno Mattresses (PVC Coated by Maccaferri or similar approved) including for rock filling (Main stone size of 100 mm as largest dimension):
A325: H.4.3.1 | C325: 0.3 m x 2 m x 6 m Long | D325: m3 | E325: =ROUND(0.3*2*6*2,1) -> 7.2
A327: H.4.3.2 | C327: 0.3 m x 1 m x 6 m Long | D327: m3 | E327: =ROUND(0.3*1*6*4,1) -> 7.2
B329: 8.2.4 | C329: Geotextile (A6 Kaytech bidim or similar approved) | D329: m2 | E329: =+(2*6*2)+(2*6*2) -> 48.0
A331: H.4.4 | B331: SANS 1200 G | C331: CONCRETE (STRUCTURAL)
B333: 8.2 | C333: Formwork
C335: Supply, erect, bind, handle and take down:
A337: H.4.4.1 | B337: 8.2.1 | C337: Rough Vertical Formwork for new RC V-Drain | D337: m2 | E337: =1.6*4 -> 6.4
B339: 8.3 | C339: Reinforcement
C341: Supply, Handle, Bend, Cut and Fix:
A343: H.4.4.2 | B343: 8.3.1 | C343: High Tensile Steel Bars | D343: t | E343: =ROUND(0.05*E353,1) -> 0.3
A346: TOTAL CARRIED FORWARD:
A347: TOTAL BROUGHT FORWARD:
B349: 8.4 | C349: Concrete
C351: Supply, mix, place, compact and test:
A353: H.4.4.3 | B353: 8.4.3 | C353: Class 25/19 MPa for new Trapezoidal Drain | D353: m3 | E353: =1.6*2*2 -> 6.4
A355: H.4.4.4 | B355: 8.4.4 | C355: a) Wood-floated finish to top of Trapezoidal Drain | D355: m2 | E355: =5*2*2 -> 20.0
B357: 8.5 | C357: Isolation Joint between existing concrete walkway and new trapezoidal drain
A359: H.4.4.5 | C359: 200 x 10 mm Thick Polyethylene Joint Former ("Jointex" by Sondor or similar approved) with hinged 10 x 10 mm temporary blocking piece | D359: m | E359: =2*2*2 -> 8.0
A361: H.4.4.6 | C361: Plug 10 x 10 mm void with approved polysulphide joint sealant ("Sikaflex" by Sika or similar approved) | D361: m | E361: =E359 -> 8.0
A394: TOTAL SCHEDULE H.4 CARRIED FORWARD TO SUMMARY:
A396: H.5 | C396: NEW OVERFLOW RECOVERY SUBMERSIBLE PUMP STATION
C398: Refer to Drg D34843-00C-134-08
A400: H.5.1 | B400: SANS 1200 C | C400: SITE CLEARANCE
A402: H.5.1.1 | B402: 8.2.1 | C402: Clear and Grub Site for Bypass Isolation Valve Chamber | D402: m2 | E402: =ROUND(3.55*2,1) -> 7.1
A404: H.5.1.2 | B404: PSC 8.2.10 | C404: Remove 150mm thick (nominal) layer of topsoil, reinstate or spread on site in designated areas | D404: m2 | E404: =E402 -> 7.1
A406: H.5.2 | B406: SANS 1200 D | C406: EARTHWORKS
A408: H.5.2.1 | B408: 8.3.3 | C408: a) Restricted Excavation in all materials for new overflow recovery pump sation up to a maximum depth of 4.0 m below ground level, use for embankment, spread on site in designated areas or backfill | D408: m3 | E408: =ROUND(3.55*2*4,1) -> 28.4
A410: H.5.2.2 | B410: PSD 8.3.7 | C410: Design, Supply, Provision and maintenance of Lateral Support for the duration of construction activities | D410: Sum | E410: 1.0
A412: H.5.2.3 | B412: PSD 8.3.14 | C412: Profile, spread, rip, recompact & test in situ material to 93% MOD AASHTO in 150 mm thick layers | D412: m3 | E412: =ROUND(3.55*2*0.15,1) -> 1.1
A414: H.5.3 | B414: SANS 1200 G | C414: CONCRETE (STRUCTURAL)
B416: 8.2 | C416: Formwork
C418: Supply, erect, bind, handle and take down:
A420: H.5.3.1 | B420: 8.2.1 | C420: Rough Vertical Formwork for RC Base Slabs | D420: m2 | E420: =+ROUND((2*0.3*4)+(1.55*0.3*2)+(2*0.3),1) -> 3.9
B422: 8.2.2 | C422: Smooth Formwork:
C424: Vertical To:
A426: H.5.3.2 | C426: RC Sump and Chamber Walls | D426: m2 | E426: =+ROUND((1.5*3.5*4)+(1.5*1*2)+(1.3*1*2)+(2*3.5*4)+(1*2)+(1.55*1*2),1) -> 59.7
A428: H.5.3.3 | C428: Sides of Roof Slab | D428: m2 | E428: =+ROUND((3.55*0.2*2)+(2*0.2*2),1) -> 2.2
C430: Horizontal To:
A432: H.5.3.4 | C432: Underside of Roof Slab | D432: m2 | E432: =+ROUND(3.55*2,1) -> 7.1
A434: TOTAL CARRIED FORWARD:
A435: TOTAL BROUGHT FORWARD:
B437: PSG 8.2.6 | C437: Box-Out Holes / Form Voids
A439: H.5.3.5 | C439: a) DN150 Stainless Steel Puddle Pipes through 250mm thick RC Walls | D439: No. | E439: 2.0
C441: d) Large, Other than Circular, of area over 0.1 m2 and up to and including 1.0 m2:
A443: H.5.3.6 | C443: 600 x 600 x 200mm thick opening for manhole cover | D443: No. | E443: 1.0
A445: H.5.3.7 | C445: 1000 x 1000 x 200mm thick opening for grate | D445: No. | E445: 1.0
B447: 8.3 | C447: Reinforcement
C449: Supply, Handle, Bend, Cut and Fix:
A451: H.5.3.8 | B451: 8.3.1 | C451: High Tensile Steel Bars | D451: t | E451: =+ROUND(((3.55*2*0.25)*0.135)+(((1.75*3.5)+(1.15*1))*0.15),1) -> 1.3
A453: H.5.3.9 | B453: PSG 8.3.2 | C453: Mesh Ref .395 (minimum 300mm overlap) | D453: m2 | E453: =+ROUND(3.55*2*2,1) -> 14.2
B455: 8.4 | C455: Concrete
C457: Supply, mix, place, compact and test:
B459: 8.4.3 | C459: Strength Concrete:
A461: H.5.3.10 | C461: Class 30/19 MPa Concrete for RC base, walls and roof slab | D461: m3 | E461: =+ROUND((3.55*2*0.25)+(1.75*3.5)+(1.15*1)+(5.74*0.2),1) -> 10.2
A463: H.5.3.11 | C463: Class 15/19 MPa Concrete for blinding and valve pedestal: | D463: m3 | E463: =+ROUND((3.55*2*0.05),1) -> 0.4
A465: H.5.3.12 | B465: 8.4.4 | C465: a) Wood-floated Finish to top of chamber walls roof slab | D465: m2 | E465: =+ROUND(1.75+1.15+5.74,1) -> 8.6
B467: 8.5 | C467: Joints:
A469: H.5.3.13 | C469: 2No. Layers of 3-ply malthoid between top of walls and underside of roof slab | D469: m | E469: =ROUND((1.75*4)+(1.55*4),1) -> 13.2
A471: H.5.3.14 | C471: Self-Adhesive Swellable Water Stop for base-to-wall joint (Kuniseal D31-DS by Xypex or similar approved) | D471: m | E471: =ROUND(1.75*4,1) -> 7.0
A478: TOTAL CARRIED FORWARD:
A479: TOTAL BROUGHT FORWARD:
A481: H.5.4 | B481: SANS 1200 L | C481: MEDIUM PRESSURE PIPELINES
B483: 8.2.5 | C483: Supply and Place Pipes, Valves and Specials (Short Pipe Runs)
C485: Note the following:
C487: (a) All stainless steel pipework to Gr 304 and to have minimum wall thickness of 6mm
C489: (b) All Flanges to be "Raised Face" to Table 1600/3 of SANS 1123
C491: (c) Nominal Pressure Rating = 16 bar
C493: (d) 3mm thick spiral wound ring gaskets ("Maxiflex" by Klinger or similar approved) to be used between all flanged connections
A495: H.5.4.1 | C495: Item 1 - DN150 x 2000mm Long (nominal) Gr 304 Stainless Steel Puddle Pipe with Plain Ends | D495: No. | E495: 1.0
A497: H.5.4.2 | C497: Item 3 - DN150 x 1800mm Long (nominal) Gr 304 Stainless Steel Pipe flanged both ends | D497: No. | E497: 1.0
A499: H.5.4.3 | C499: Item 4 - DN150 x 90 deg Short Radius Gr 304 Stainless Steel Bend flanged both ends (R = 165mm, C/F = 230mm) | D499: No. | E499: 1.0
... 17 more rows

Sheet H-Sum
A1: SCHEDULE H: REPAIRS, ALTERATIONS AND UPGRADES TO EMERGENCY OVERFLOW PONDS
A2: SUMMARY OF SECTIONS - SCHEDULE H
A4: SECTION | B4: DESCRIPTION | F4: AMOUNT
A6: H.1 | B6: REHABILITATION OF OVERFLOW PONDS
A8: H.2 | B8: NEW OVERFLOW CHAMBERS:
A10: H.3 | B10: NEW SCOUR VALVE CHAMBERS & PEDESTRIAN BRIDGES
A12: H.4 | B12: NEW EMERGENCY OVERFLOW SPILLWAYS
A14: H.5 | B14: NEW OVERFLOW RECOVERY SUBMERSIBLE PUMP STATION
A16: H | B16: TOTAL SCHEDULE H CARRIED FORWARD TO SUMMARY PAGE (H.1 + H.2 + H.3 + H.4 + H.5)

Sheet I
C1: SCHEDULE I: UPSTREAM CATCHMENT AREA REPAIRS
A2: I.TEM | B2: PAYMENT | C2: DESCRIPTION | D2: UNIT | E2: QTY | F2: RATE | G2: AMOUNT
A4: I.1 | C4: AFFECTED AREA 1
A6: I.1.1 | B6: SANS 1200 C | C6: SITE CLEARANCE
A8: I.1.1.1 | B8: 8.2.1.1 | C8: Clear and Grub of storm damaged area | D8: ha | E8: 0.4
B10: 8.2.2 | C10: Remove and grub large trees and tree stumps of girth:
A12: I.1.1.2 | C12: a) Over 1m and up to and including 2m | D12: No. | E12: 1.0
A14: I.1.1.3 | C14: b) Over 2m and up to and including 3m | D14: No. | E14: 2.0
A16: I.1.1.4 | B16: PSC 8.2.12 | C16: Remove and Reinstate Weldmesh Fences of Maximum Height = 1.8 m | D16: m | E16: 30.0
A18: I.1.1.5 | B18: PSC.8.2.8 | C18: Demolish, remove and dispose of structures, including manholes, brickwork walls etc. (provisional) | D18: m3 | E18: 10.0
A20: I.1.1.6 | B20: PSC.8.2.15 | C20: Removal and disposal of Existing Asphalt-surfaced Pavement | D20: m2 | E20: 35.0
B22: PSC.8.2.8 | C22: Removal and disposal of Concrete Rings manhole inclusive of manhole Covers and Frames for the following depth categories :
A24: I.1.1.7 | C24: a) 0-1m depth | D24: No. | E24: 2.0
A26: I.1.1.8 | C26: b) 1-2m Depth | D26: No. | E26: 1.0
A28: I.1.1.9 | B28: PSC.8.2.8 | C28: Removal and Dispoal of Existing concrete ring manhole cover and frame | D28: No. | E28: 2.0
A30: I.1.2 | B30: SANS 1200 D | C30: EARTHWORKS
A32: I.1.2.1 | B32: PSD 8.3.1.2 | C32: Remove topsoil to nominal depth 150mm, stockpile and maintain | D32: m2 | E32: 500.0
A34: I.1.2.2 | B34: 8.3.2 | C34: a) Excavate in all materials and use for embankment or backfill or dispose as ordered | D34: m3 | E34: 280.0
C36: b) Extra-Over Item I.1.2.2 for:
A38: I.1.2.3 | C38: 1) Intermediate excavation | D38: m3 | E38: 35.0
A40: I.1.2.4 | C40: 2) Hard rock excavation | D40: m3 | E40: 20.0
A42: I.1.2.5 | B42: PSD 8.3.4 | C42: Import G8 material from commercial sources and compact to 90% MOD AASTHO | D42: m3 | E42: 60.0
A44: TOTAL CARRIED FORWARD:
A45: TOTAL BROUGHT FORWARD:
A47: I.1.2.6 | B47: 8.3.10 | C47: Topsoiling from stockpile to a thickness of 100mm | D47: m2 | E47: 200.0
A49: I.1.2.7 | B49: PS.31 | C49: Supply and lay 'Cynodon Dactylon' grassing (including fertilizer, watering and full maintenance) | D49: m2 | E49: 200.0
A51: I.1.3 | B51: SANS 1200 DB | C51: EARTHWORKS FOR PIPE TRENCHES
B53: PSDB 8.3.2 | C53: Excavation
C55: a) Excavate in all materials for trenches for 160mm - 200mm diameter pipes, backfill, compact to 90% MOD AASHTO, and dispose of surplus material. Rate to include for cutting of level bench and all other costs deemed necessary by the Contractor
A57: I.1.3.1 | C57: Over 0m and not exceeding 1.0m | D57: m | E57: 15.0
A59: I.1.3.2 | C59: Over 1.0m and not exceeding 2.0m | D59: m | E59: 75.0
A61: I.1.3.3 | C61: Over 2.0m and not exceeding 3.0m | D61: m | E61: 10.0
C63: a) Excavate in all materials for trenches for 450mm-600mm diameter pipes, backfill, compact to 90% MOD AASHTO, and dispose of surplus material. Rate to include for cutting of level bench and all other costs deemed necessary by the Contractor
A65: I.1.3.4 | C65: Over 1.0m and not exceeding 2.0m | D65: m | E65: 5.0
A67: I.1.3.5 | C67: Over 2.0m and not exceeding 3.0m | D67: m | E67: 10.0
C69: b) Extra-Over Items I.1.3.2 - I.1.3.5 for:
A71: I.1.3.6 | C71: 1) Intermediate Excavation | D71: m3 | E71: 45.0
A73: I.1.3.7 | C73: 2) Hard rock excavation | D73: m3 | E73: 25.0
A75: I.1.3.8 | C75: 3) Boulder Excavation | D75: m3 | E75: 20.0
A77: I.1.3.9 | C77: c) Excavate and dispose of unsuitable material from trench bottom | D77: m3 | E77: 20.0
A79: TOTAL CARRIED FORWARD:
A80: TOTAL BROUGHT FORWARD:
B82: 8.3.3 | C82: Excavation Ancillaries
B84: 8.3.3.1 | C84: Make up deficiency in backfill material
A86: I.1.3.10 | C86: c) By importation of G8 material from commercial sources and compaction to 93% Mod AASHTO. | D86: m3 | E86: 60.0
B88: 8.3.4 | C88: Particular Items
A90: I.1.3.11 | B90: 8.3.4.a) | C90: Shore trench opposite structure or service (up to 3m depth) - provisional | D90: m | E90: 10.0
B92: 8.3.5 | C92: Existing Services
C94: a) Services that intersect a trench
A96: I.1.3.12 | C96: HDPe / PVC Water Pipelines (Up to & incl. 110 Ø) | D96: No. | E96: 3.0
A98: I.1.3.13 | C98: Concrete Stormwater Pipelines (Up to & incl. 525 Ø) | D98: No. | E98: 2.0
C100: b) Services that adjoin a trench
A102: I.1.3.14 | C102: HDPe / PVC Water Pipelines (Up to & incl. 110 Ø) | D102: m | E102: 20.0
A104: I.1.4 | B104: SANS 1200 DK | C104: GABIONS AND PITCHING
A106: I.1.4.1 | B106: 8.2.1 | C106: a) Cavities filled with approved excavated material of rock | D106: m2 | E106: 20.0
B108: 8.2.2 | C108: PVC coated (0.5mm thickness) Class A hexagonal mesh gabion boxes with rock fill (commercial stones), (Gabion 80 x 100) mesh aperture (mattresses 60 x 80) for the following sizes:
A110: I.1.4.2 | C110: 1.0m x 1.0m x 1.0m gabion basket | D110: m3 | E110: 10.0
A112: I.1.4.3 | C112: 2.0m x 1.0m x 1.0m gabion basket | D112: m3 | E112: 80.0
A114: I.1.4.4 | C114: 3.0m x 1.0m x 1.0m gabion basket | D114: m3 | E114: 120.0
A116: I.1.4.5 | C116: 4.0m x 1.0m x 1.0m gabion basket | D116: m3 | E116: 80.0
A118: I.1.4.6 | C118: 2.0m x 1.0m 0.3m reno mattress | D118: m3 | E118: 5.0
A120: I.1.4.7 | B120: 8.2.4 | C120: Geotextile (A4 Kaytech or similar approved) | D120: m3 | E120: 200.0
A123: TOTAL CARRIED FORWARD:
A124: TOTAL BROUGHT FORWARD:
A126: I.1.4.8 | B126: 8.2.5 | C126: Medium grouted pitching of 300mm thickness and main stone size of 150mm as smallest dimension | D126: m2 | E126: 50.0
A128: I.1.4.9 | C128: Concrete Capping to Gabion Baskets (Provisional):
A130: I.1.4.9.1 | C130: Rough Vertical Formwork | D130: m2 | E130: 36.0
A132: I.1.4.9.2 | C132: Class 30/19 MPa Concrete | D132: m3 | E132: 10.0
A134: I.1.5 | B134: SANS 1200 DM | C134: EARTHWORKS ( ROADS, SUBGRADE)
B136: 8.3.7 | C136: Cut to Spoil From:
A138: I.1.5.1 | C138: a) Soft Excavation | D138: m3 | E138: 25.0
B140: 8.3.13 | C140: Surface Finishing:
A142: I.1.5.2 | C142: a) Topsoiling from stockpiled material to a thickness of 100mm | D142: m2 | E142: 200.0
A144: I.1.5.3 | B144: PS.31 | C144: b) Supply and lay 'Cynodon Dactylon' grassing (including fertilizer, watering and full maintenance) | D144: m2 | E144: 200.0
B146: 8.3.16 | C146: Gravel Surface Layer:
A148: I.1.5.4 | C148: Construct Selected layer G7 from commercial sources, 150mm thick compacted to 95% Mod. AASHTO maximum density | D148: m3 | E148: 7.5
A150: I.1.5.5 | C150: Construct Selected layer G8 from commercial sources, 150mm thick compacted to 90% Mod. AASHTO maximum density | D150: m3 | E150: 10.0
A152: I.1.6 | B152: SANS 1200 LB | C152: BEDDING : PIPES
B154: PSLB 8.2.1 | C154: Provision of bedding from trench excavation, regardless of distance (Provisional):
A156: I.1.6.1 | C156: b) Selected fill material | D156: m3 | E156: 5.0
A162: TOTAL CARRIED FORWARD:
A163: TOTAL BROUGHT FORWARD:
B165: PSLB 8.2.2 | C165: Supply only of bedding by importation (note: all importation of bedding material, regardless of source or distance, shall be regarded as freehaul)
B167: PSLB 8.2.2.2 | C167: From Commerical Sources:
A169: I.1.6.2 | C169: a) Selected granular material | D169: m3 | E169: 30.0
A171: I.1.6.3 | C171: b) Selected fill material | D171: m3 | E171: 30.0
B173: PSLB 8.2.6 | C173: Provision of Stone Bedding:
A175: I.1.6.4 | C175: a) 19mm Crushed stone for water logged trench bottom | D175: m3 | E175: 5.0
A177: I.1.6.5 | C177: b) Geotextile for subsoil drain (A4 Kaytech or similar approved) | D177: m2 | E177: 20.0
A179: I.1.7 | B179: SANS 1200 LD | C179: SEWERS
A181: I.1.7.1 | B181: 8.2.1 | C181: Supply, lay, joint, bed and test 160mm ND heavy duty spigot and socket solid wall uPVC pipe (Class 34) | D181: m | E181: 100.0
B183: PSLD 8.2.3 | C183: Construct concrete manhole using 1000mm ND precast concrete rings complete as per Detail B on Drawing D34843.00C-133-01 including light duty cover and frame, excavation, and Type 'A' benching etc.
A185: I.1.7.2 | C185: Over 0m and not exceeding 1.5m deep | D185: No. | E185: 1.0
A187: I.1.7.3 | C187: Over 1.5m and not exceeding 2.0m deep | D187: No. | E187: 2.0
A189: I.1.7.4 | C189: Over 2.0m and not exceeding 2.5m deep | D189: No. | E189: 1.0
A191: I.1.7.5 | C191: Over 2.5m and not exceeding 3.0m deep | D191: No. | E191: 1.0
B193: 8.2.4 | C193: Extra Over Item I.1.7.2 - I.1.7.5 for :
C195: Construction of Backdrop Manholes: Type A complete as per Detail D on Drawing D34843.00C-133-01 for the following depth categories:
A197: I.1.7.6 | C197: Over 1.5m and not exceeding 2.0m | D197: No. | E197: 1.0
A199: TOTAL CARRIED FORWARD:
A200: TOTAL BROUGHT FORWARD:
C202: Construction of Backdrop Manholes: Type B complete as per Detail D on Drawing D34843.00 - 133-01 for the following depth categories:
A204: I.1.7.7 | C204: Over 1m and not exceeding 1.5m | D204: No. | E204: 1.0
A206: I.1.7.8 | C206: Over 1.5m and not exceeding 2.0m | D206: No. | E206: 1.0
A208: I.1.7.9 | C208: Type 'B' benching | D208: No. | E208: 3.0
A210: I.1.7.10 | C210: Heavy duty concrete manhole cover and frame | D210: No. | E210: 2.0
B212: 8.2.6 | C212: Erf Connections
A214: I.1.7.11 | C214: Connection into main sewer pipeline complete as per Detail C on Drawing D34843.00133-01 Rate to include for all excavation, backfilling, bedding, disposal of surplus material and the supply, installation and laying of 110mm diameter uPVC pipe class 34, junctions, 110mm uPVC fittings, rodding eye, cover slab etc. for depths over 1m and not exceeding 2m | D214: No. | E214: 1.0
C216: Extra-over item I.1.7.11 for:
A218: I.1.7.12 | C218: Connections into manholes including benching, all associated works and making good upon completion | D218: No. | E218: 1.0
A220: I.1.7.13 | B220: 8.2.7 | C220: Encasing of pipes in concrete Grade 25MPa/19mm as per detail E on drawing D34843.00C-133-01 including for all formwork | D220: m3 | E220: 5.0
B222: 8.2.11 | C222: Break and connect into existing manhole for new connection, deal with live sewer flow and make good all benching:
A224: I.1.7.15 | C224: 160mm ND solid wall uPVC pipe | D224: No. | E224: 1.0
A226: I.1.7.16 | B226: PSLD 8.2.16 | C226: Conduct manhole watertightness test | D226: No. | E226: 2.0
A228: I.1.7.17 | B228: PS.26 | C228: Unblocking of Existing Sewer Manholes | D228: No. | E228: 3.0
A232: TOTAL CARRIED FORWARD:
A233: TOTAL BROUGHT FORWARD:
A235: I.1.7.18 | B235: PS.27 | C235: High Pressure Jetting and Clearing of DN160 Sewer Pipeline for the following pipe diameters | D235: m | E235: 30.0
A237: I.1.7.19 | B237: PSLD 8.2.13 | C237: Supply and install 1000mm diameter x 500mm high precast concrete manhole rings | D237: No. | E237: 5.0
B239: PSLD 8.2.14 | C239: Supply, install, seal and fix 1000mm diameter precast concrete manhole cover and frames for the following duty classes:
A241: I.1.7.20 | C241: Light Duty | D241: No | E241: 1.0
A243: I.1.7.21 | C243: Heavy Duty | D243: No | E243: 1.0
A245: I.1.8 | B245: SANS 1200 LE | C245: STORMWATER DRAINAGE
B247: 8.2.1 | C247: Supply and Lay Concrete Pipe Culverts on Class C bedding
A249: I.1.8.1 | C249: DN525 Class 100 D spigot and socket | D249: m | E249: 5.0
A251: I.1.8.2 | C251: DN600 Class 50 D spigot and socket | D251: m | E251: 10.0
A253: I.1.8.3 | C253: DN600 Class 100 D spigot and socket | D253: m | E253: 5.0
B255: 8.2.4 | C255: Extra Over Item G8.1 for cutting end units for culverts on site
A257: I.1.8.4 | C257: a) Straight cut | D257: No. | E257: 2.0
B259: 8.2.8 | C259: Supply and Install Manholes, Catchpits and the Like:
A261: I.1.8.5 | C261: Single Stormwater Manhole Over 1m and not exceeding 2.0m as per Detail G on Drawing D34843.00C-123-01 | D261: No. | E261: 1.0
A263: I.1.8.6 | C263: Single Stormwater Manhole Over 2.0m and not exceeding 3.0m as per Detail G on Drawing D34843.00C-123-01 | D263: No. | E263: 1.0
A265: I.1.8.7 | B265: PSLE 8.2.14 | C265: Inlet and Outlet Headwall complete as per Detail F on Drawing D34843.00C-123-01 | D265: No. | E265: 1.0
A267: I.1.8.8 | B267: 8.2.11 | C267: Anchor blocks Grade 25MPa/19mm including for rough vertical formwork | D267: m3 | E267: 5.0
A270: TOTAL CARRIED FORWARD:
A271: TOTAL BROUGHT FORWARD:
A273: I.1.9 | B273: SANS 1200 ME | C273: SUBBASE
A275: I.1.9.1 | B275: 8.3.3 | C275: Construct subbase using G5 material from commercial sources compacted to 98 % Mod AASHTO max. density for roads | D275: m3 | E275: 6.0
A277: I.1.10 | B277: SANS 1200 MF | C277: BASE
A279: I.1.10.1 | B279: 8.3.3 | C279: a) Construct base with material G2 from commercial sources material compacted to 98 % Mod.AASHTO max. density for roads | D279: m3 | E279: 5.0
A281: I.1.11 | B281: SANS 1200 MH | C281: ASPHALT SURFACING
A283: I.1.11.1 | B283: 8.5.1 | C283: Tack Coat of 60% stable grade emulsion - application rate 0.3 L/m2 | D283: m3 | E283: 30.0
A285: I.1.11.2 | B285: 8.5.4 | C285: 50mm Thick Sa - S14 Asphalt Wearing Course compacted o 93% MTRD | D285: t | E285: 5.0
A287: I.1.12 | B287: SANS 1200 MM | C287: ANCILLARY ROAD WORKS
B289: 8.2.1 | C289: Guard Rails on Post as per Detail J on drawing D34843.00C-123-01
A291: I.1.12.1 | C291: a) Galvanised | D291: m | E291: 18.0
B293: 8.2.3 | C293: End units
A295: I.1.12.2 | C295: a) End Wings | D295: m | E295: 2.0
A297: I.1.12.3 | B297: 8.2.5 | C297: Reflector Plates | D297: No. | E297: 5.0
A314: TOTAL SCHEDULE I.1 CARRIED FORWARD TO SUMMARY:
A316: I.2 | C316: AFFECTED AREA 2
A318: I.2.1 | B318: SANS 1200 C | C318: SITE CLEARANCE
A320: I.2.1.1 | B320: 8.2.1.1 | C320: Clear and Grub of storm damaged areas | D320: ha | E320: 0.6
A322: I.2.1.2 | B322: PSC 8.2.8 | C322: Demolish, remove and dispose of structures, including manholes, brickwork walls etc. (provisional) | D322: m3 | E322: 5.0
A324: I.2.1.3 | B324: PSC 8.2.15 | C324: Removal of Existing Asphalt-Surfaced Pavement | D324: m² | E324: 5.0
B326: PSC 8.2.11 | C326: Removal and disposal of Precast concrete manhole rings manhole inclusive of manhole covers and frames for the following depth categories:
A328: I.2.1.4 | C328: Over 0.0 m and not exceeding 1.0 m depth | D328: No. | E328: 5.0
A330: I.2.1.5 | C330: Over 1.0 m and not exceeding 2.0 m depth | D330: No. | E330: 3.0
A332: I.2.1.6 | B332: PSC 8.2.11 | C332: Removal and Dispoal of Existing concrete ring manhole cover and frame | D332: No. | E332: 5.0
A334: I.2.2 | B334: SANS 1200 DB | C334: EARTHWORKS FOR PIPE TRENCHES
B336: PSDB 8.3.2 | C336: Excavation
C338: a) Excavate in all materials for trenches for 160 - 375mm diameter pipes, backfill, compact to 90% MOD AASHTO, and dispose of surplus material. Rate to include for cutting of level bench and all other costs deemed necessary by the Contractor
A340: I.2.2.1 | C340: Over 0m and not exceeding 1.0m | D340: m | E340: 15.0
A342: I.2.2.2 | C342: Over 1m and not exceeding 2.0m | D342: m | E342: 45.0
A344: I.2.2.3 | C344: Over 2m and not exceeding 3.0m | D344: m | E344: 30.0
C346: b) Extra-Over Items I.2.2.1 - I.2.2.3 for:
A348: I.2.2.4 | C348: 1) Intermediate Excavation | D348: m3 | E348: 80.0
A350: I.2.2.5 | C350: 2) Hard rock excavation | D350: m3 | E350: 20.0
A352: I.2.2.6 | C352: 3) Boulder Excavation | D352: m3 | E352: 5.0
A354: TOTAL CARRIED FORWARD:
A355: TOTAL BROUGHT FORWARD:
A357: I.2.2.7 | C357: c) Excavate and dispose of unsuitable material from trench bottom | D357: m3 | E357: 80.0
B359: 8.3.3 | C359: Excavation Ancillaries
B361: 8.3.3.1 | C361: Make up deficiency in backfill material
A363: I.2.2.8 | C363: c) By importation of G8 material from commercial sources and compaction to 93% Mod AASHTO. | D363: m3 | E363: 35.0
B365: 8.3.4 | C365: Particular Items
A367: I.2.2.9 | C367: a) Shore trench opposite structure or service (up to 3m depth) - provisional | D367: m | E367: 10.0
B369: 8.3.5 | C369: Existing Services
B371: 8.3.5.a) | C371: Services that intersect a trench
A373: I.2.2.10 | C373: HDPe / PVC Water Pipelines (Up to & incl. 110 Ø) | D373: No. | E373: 3.0
A375: I.2.2.11 | C375: Concrete Stormwater Pipelines (Up to & incl. 525 Ø) | D375: No. | E375: 2.0
B377: 8.3.5.b) | C377: Services that adjoin a trench
A379: I.2.2.12 | C379: HDPe / PVC Water Pipelines (Up to & incl. 110 Ø) | D379: m | E379: 30.0
A381: I.2.3 | B381: SANS 1200 DM | C381: EARTHWORKS ( ROADS, SUBGRADE)
B383: 8.3.7 | C383: Cut to Spoil From:
A385: I.2.3.1 | C385: a) Soft Excavation | D385: m3 | E385: 6.0
A387: I.2.3.2 | B387: 8.3.13 | C387: Surface Finishing
A389: I.2.3.3 | C389: a) Topsoiling from stockpiled material to a thickness of 100mm | D389: m2 | E389: 200.0
A391: I.2.3.4 | B391: PS.31 | C391: b) Supply and lay 'Cynodon Dactylon' grassing (including fertilizer, watering and full maintenance) | D391: m2 | E391: 200.0
B393: 8.3.16 | C393: Gravel Surface Layer
A395: I.2.3.5 | C395: Construct Selected layer G7 from commercial sources, 150mm thick compacted to 95% Mod. AASHTO maximum density | D395: m3 | E395: 2.0
A397: TOTAL CARRIED FORWARD:
A398: TOTAL BROUGHT FORWARD:
A400: I.2.3.6 | C400: Construct Selected layer G8 from commercial sources, 150mm thick compacted to 90% Mod. AASHTO maximum density | D400: m3 | E400: 2.0
A402: I.2.4 | B402: SANS 1200 LB | C402: BEDDING : PIPES
B404: PSLB 8.2.1 | C404: Provision of bedding from trench excavation, regardless of distance (Provisional):
A406: I.2.4.1 | C406: b) Selected fill material | D406: m3 | E406: 5.0
B408: PSLB 8.2.2 | C408: Supply only of bedding by importation (note: all importation of bedding material, regardless of source or distance, shall be regarded as freehaul)
B410: PSLB 8.2.2.2 | C410: From Commerical Sources:
A412: I.2.4.2 | C412: a) Selected granular material | D412: m3 | E412: 50.0
... 321 more rows

Sheet I-Sum
A1: SCHEDULE I: UPSTREAM CATCHMENT AREA REPAIRS
A2: SUMMARY OF SECTIONS - SCHEDULE I
A4: SECTION | B4: DESCRIPTION | F4: AMOUNT
A6: I.1 | B6: AFFECTED AREA 1
A8: I.2 | B8: AFFECTED AREA 2
A10: I.3 | B10: AFFECTED AREA 3
A12: I.4 | B12: AFFECTED AREA 4
A14: I.5 | B14: AFFECTED AREA 5
A16: I | B16: TOTAL SCHEDULE I CARRIED FORWARD TO SUMMARY PAGE (I.1 + I.2 + I.3 + I.4 + I.5)

Sheet J
A1: SCHEDULE J: EARTHWORKS, STORMWATER CONTROL & FLOOD DAMAGES RESTORATION
A2: I.TEM | B2: PAYMENT | C2: DESCRIPTION | D2: UNIT | E2: QTY | F2: RATE | G2: AMOUNT
A4: J.1 | B4: SANS 1200 C | C4: SITE CLEARANCE
A6: J.1.1 | B6: PSC 8.2.11 | C6: Clear, Lift, Load and Dispose of Materials in Approved Dump Site | D6: m3 | E6: 1,500.0
A8: J.1.2 | B8: 8.2.2 | C8: Remove and Grub trees and tree stumps of girth:
A10: J1.2.1 | C10: a) Over 1m and up to and including 2m | D10: No. | E10: 5.0
A12: J1.3 | B12: PSC 8.2.17 | C12: Removal and disposal of existing concrete surfaces | D12: m3 | E12: 20.0
A14: J1.4 | B14: PSC 8.2.15 | C14: Removal of Existing Pavement (Rate to include for Asphalt surfacings up to a maximum of 50mm thick) | D14: m2 | E14: 160.0
A16: J.2 | B16: SANS 1200 D | C16: EARTHWORKS
A18: J.2.1 | B18: PSC 8.3.1.2 | C18: a) Remove topsoil to nominal depth of 200mm, stockpile, maintain and if in excess of requirements dispose off in approved area. | D18: m2 | E18: 2,500.0
A20: J.2.2 | B20: 8.3.2 | C20: a) Excavate in all materials and use for embankment or backfill or dispose as directed by the Engineer. | D20: m3 | E20: 200.0
A22: J.2.3 | B22: 8.3.2 | C22: b) Extra Over Item J.2.2 for :
A24: J.2.3.1 | C24: 1) Intermediate excavation | D24: m3 | E24: 55.0
A26: J.2.3.2 | C26: 2) Hard rock excavation | D26: m3 | E26: 10.0
A28: J.2.4 | B28: PSD 8.3.4 | C28: Import G8 material from commercial sources and compact to 90% of MDD for platforms, embankments e.t.c. | D28: m3 | E28: 3,500.0 | I28: Speak to some suppliers to confirm the rate
A30: J.2.5 | B30: 8.3.10 | C30: Topsoiling from stockpile to a thickness of 100mm | D30: m2 | E30: 2,500.0
A32: J.2.6 | B32: PS.22 | C32: Supply and lay 'Cynodon Dactylon' grassing (including fertilizer, watering and full maintenance) | D32: m2 | E32: 2,500.0 | I32: double check that speck has been provided
A34: J.2.7 | B34: PS.41.3.a) | C34: Supply and lay High tensile strength geotextile Rock Grid PC or similar approved to support, stabilise and reinforce the embankment | D34: m2 | E34: 3,000.0
A38: TOTAL CARRIED FORWARD:
A39: TOTAL BROUGHT FORWARD:
A41: J.3 | B41: SANS 1200 DB | C41: EARTHWORKS FOR PIPE TRENCHES
B43: PSDB 8.3.2 | C43: Excavation:
A45: J.3.1 | C45: a) Excavate in all materials for pipe trenches up to 160mm diameter pipes, backfill, compact to 93% of MDD, and dispose of surplus material.Rate to include for cutting of level bench and all other costs deemed necessary by the Contractor
A47: J.3.1.1 | C47: Over 0m and not exceeding 1.0m | D47: m | E47: 30.0
A49: J.3.1.2 | C49: Over 1m and not exceeding 2.0m | D49: m | E49: 180.0
A51: J.3.2 | C51: a) Excavate in all materials for pipe trenches for 450mm diameter pipes, backfill, compact to 93% MOD AASHTO, and dispose of surplus material. Rate to include for cutting of level bench and all other costs deemed necessary by the Contractor
A53: J.3.2.1 | C53: Over 0m and not exceeding 1.0m | D53: m | E53: 20.0
A55: J.3.2.2 | C55: Over 1m and not exceeding 2.0m | D55: m | E55: 320.0
A57: J.3.2.3 | C57: Over 2.0m and not exceeding 3.0m | D57: m | E57: 10.0
A59: J.3.3 | C59: a) Excavate in all materials for pipe trenches for 600mm diameter pipes, backfill, compact to 90% MOD AASHTO, and dispose of surplus material. Rate to include for cutting of level bench and all other costs deemed necessary by the Contractor
A61: J.3.3.1 | C61: Over 0m and not exceeding 1.0m | D61: m | E61: 5.0
A63: J.3.3.2 | C63: Over 1m and not exceeding 2.0m | D63: m | E63: 10.0
A65: J.3.4 | C65: b) Extra-Over Items J.3.1, J.3.2 and J.3.3 for:
A67: J.3.4.1 | C67: 1) Intermediate Excavation | D67: m3 | E67: 100.0
A69: J.3.4.2 | C69: 2) Hard rock excavation | D69: m3 | E69: 60.0
A76: TOTAL CARRIED FORWARD:
A77: TOTAL BROUGHT FORWARD:
A79: J.3.5 | B79: 8.3.3 | C79: Excavation Ancillaries
B81: 8.3.3.1 | C81: Make up deficiency in backfill material
A83: J.3.5.1 | C83: c) By importation of G8 material from commercial sources and compaction to 93% Mod AASHTO. | D83: m3 | E83: 100.0
A85: J.4 | B85: SANS 1200 DK | C85: GABIONS AND PITCHING
A87: J.4.1 | B87: 8.2.1 | C87: Surface preparation for bedding of gabions | H87: This item is supposed to be split up between rock and 15 MPa concrete
A89: J.4.1.1 | C89: a) Cavities filled with approved excavated material or rock | D89: m2 | E89: 46.0
A91: J.4.1.2 | C91: b) Cavities filled with Class 15/19 MPa concrete (provisional) | D91: m2 | E91: 46.0
A93: J.4.2 | B93: 8.2.2 | C93: PVC coated (0.5mm thickness) Class A hexagonal mesh gabion boxes with rock fill (commercial stones), (Gabion 80 x 100) mesh aperture (mattresses 60 x 80) for the following sizes:
A95: J.4.2.1 | C95: 1.0m x 1.0m x 1.0m gabion basket | D95: m3 | E95: 40.0
A97: J.4.2.2 | C97: 2.0m x 1.0m x 1.0m gabion basket | D97: m3 | E97: 70.0
A99: J.4.2.3 | C99: 2.0m x 1.0m 0.3m reno mattress | D99: m3 | E99: 20.0
A101: J.4.3 | B101: 8.2.4 | C101: Geotextile blanket for Gabions (A4 Kaytech (2.3mm thick, Penetration Load = 2.5KN, Porosity = 93%) or similar approved) | D101: m2 | E101: 180.0 | I101: Consistency
A103: J.5 | B103: SANS 1200 G | C103: CONCRETE WORKS (Structural)
A105: J.5.1 | B105: 8.2.1 | C105: Rough Formwork for drains, anchor blocks and culvert splitter blocks | D105: m2 | E105: 300.0
A107: J.5.2 | B107: PSG 8.3.2 | C107: High Tensile Welded Ref Mesh .193 | D107: m2 | E107: 320.0
A109: J.5.3 | B109: 8.4.3 | C109: Class 25/19 MPa Concrete for drains | D109: m3 | E109: 120.0
A111: J.5.3 | B111: 8.4.4 | C111: Unformed surface finishes
A113: J.5.3.1 | C113: a) Wood-floated finish | D113: m2 | E113: 480.0
A117: TOTAL CARRIED FORWARD:
A118: TOTAL BROUGHT FORWARD:
A120: J.5.4 | B120: 8.5 | C120: Joints
A122: J.5.4.1 | C122: Sawcut Joint for V-Drains complete as per Detail A on Drawing D34843C.00-123-01 | D122: m | E122: 300.0 | H122: Never refer to Revisions of drawings. Cap descriptions at the 123-01 to cater for revisions down the line
A124: J.5.4.2 | C124: Expansion Joint Detail for V-Drains complete as per Detail A on Drawing D34843C.00-123-01 | D124: m | E124: 50.0
A126: J.5.4.3 | C126: 200 x 10 mm Thick Polyethylene Joint Former ("Jointex" by Sondor or similar approved) with hinged 10 x 10 mm temporary blocking piece, plugged with polysulphide joint sealant ("Sikaflex" by Sika or similar approved) | D126: m | E126: 300.0
A128: J.5.4.4 | C128: 100 x 10mm wide Bitumen impregnated soft board | D128: m | E128: 50.0
A130: J.6 | B130: SANS 1200 LB | C130: SECTION 6 : BEDDING ( PIPES)
A132: J.6.1 | B132: PSLB 8.2.1 | C132: Provision of bedding from trench excavation, regardless of distance (Provisional):
A134: J.6.1.1 | C134: b) Selected fill material | D134: m3 | E134: 300.0
A136: J.6.2 | B136: PSLB 8.2.2 | C136: Supply only of bedding by importation (note: all importation of bedding material, regardless of source or distance, shall be regarded as freehaul)
B138: PSLB 8.2.2.3 | C138: From commercial sources:
A140: J.6.2.1 | C140: a) Selected granular material | D140: m3 | E140: 600.0
A142: J.6.2.2 | C142: b) Selected fill material | D142: m3 | E142: 200.0
A144: J.6.3 | B144: PSLB 8.2.6 | C144: Provision of Stone Bedding:
A146: J.6.3.1 | C146: a) Provision of crushed stone (14mm nominal size) | D146: m3 | E146: 15.0
A148: J.6.3.2 | C148: b) Geotextile for subsoil drain (A4 Kaytech or similar approved) | D148: m2 | E148: 320.0
A152: TOTAL CARRIED FORWARD:
A153: TOTAL BROUGHT FORWARD:
A155: J.7 | B155: SANS 1200 LE | C155: STORMWATER DRAINAGE
A157: J.7.1 | B157: 8.2.1 | C157: Supply and Lay Concrete Pipe Culverts on Class C bedding
A159: J.7.1.1 | C159: DN450 Class 50 D spigot and socket | D159: m | E159: 350.0
A161: J.7.1.2 | C161: DN600 Class 100 D spigot and socket | D161: m | E161: 10.0
B163: PS.40.3.a) | C163: Supply and Install Slotted Sub-Soil Pipe complete with couplings:
A165: J.7.2 | C165: DN110 slotted uPVC pipe normal duty | D165: m | E165: 90.0
A167: J.7.3 | C167: DN150 slotted uPVC pipe normal duty | D167: m | E167: 75.0
A169: J.7.4 | B169: 8.2.8 | C169: Supply and Install Manholes, Catchpits and the Like:
A171: J.7.4.1 | C171: a) Type 1 single manhole over 1m and not exceding 2m as per Detail G on Dwg No. D34843.00C-123-01. | D171: No. | E171: 4.0
A173: J.7.4.2 | C173: b) Type 2 catchpit manhole over 1m and not exceding 2m as per Detail H on Dwg No. D34843.00C-123-01. | D173: No. | E173: 7.0
A175: J.7.4.3 | C175: c) Type 1 single manhole over 2m and not exceding 3m as per Detail G on Dwg No. D34843.00C-123-01. | D175: No. | E175: 2.0
A177: J.7.4.4 | C177: d) Type 2 single manhole over 2m and not exceding 3m as per Detail H on Dwg No. D4843.00C-123-01. | D177: No. | E177: 3.0
A179: J.7.4.5 | C179: e) Single Manhole over 1m and not exceding 2m as per Detail K on Dwg No. D34843.00C-123-01. | D179: No. | E179: 2.0
A181: J.7.4.6 | C181: f) Single Manhole over 2m and not exceding 3m as per Detail K on Dwg No. D4843C.00-123-01. | D181: No. | E181: 1.0
A183: J.7.5 | B183: PS.40.3.e) | C183: Inspection boxes/Cleaning eyes | D183: No. | E183: 6.0
A185: J.7.6 | B185: PSLE 8.2.14 | C185: Outlet Headwall complete as per Detail F on Dwg No. D34843.00C-123-01. | D185: No. | E185: 4.0
A187: J.7.7 | B187: 8.2.10 | C187: Accessories
C189: d) Heavy duty concrete grid cover (Dog bone) channel as per Detail B on Dwg No. D4843C.00-123-01. | D189: No. | E189: 60.0
A191: TOTAL CARRIED FORWARD:
A192: TOTAL BROUGHT FORWARD:
A194: J.8 | B194: SANS 1200 ME | C194: SUBBASE
A196: J.8.1 | B196: 8.3.3 | C196: Supply G5 material from commercial sources and construct subbase | D196: m3 | E196: 135.0
A198: J.8.2 | B198: 8.3.5 | C198: Process subbase material by the following processes, as relevant and use in the subbase:
A200: J.8.2.1 | C200: d) Stabilisation to achieve a cement stabilised C4 layer with UCS of 1.5MPa & Min I.T.S 200KPa compacted to 95% Mod AASHTO | D200: m3 | E200: 135.0
A202: J.8.3 | B202: 8.3.8 | C202: Stabilising agent
A204: J.8.3.1 | B204: 8.3.8(b) | C204: b) Portland Cement | D204: t | E204: 15.0
A206: J.9 | B206: SANS 1200 MF | C206: BASE
A208: J.9.1 | B208: 8.3.3 | C208: Construct base with material from commercial sources
A210: J.9.1.1 | C210: a) G2 material compacted to 102 % Mod.AASHTO max. density for roads | D210: m3 | E210: 54.0
A212: J.10 | B212: SANS 1200 MH | C212: SECTION 10 : ASPHALT SURFACING
A214: J.10.1 | B214: 8.5.1 & PS.33.7.2 | C214: Prime coat of Inverted bitumen emulsion. Application Rate 0.7 L/m2 | D214: m2 | E214: 180.0
A216: J.10.2 | B216: PS.33.7.2 | C216: Asphalt surfacing layer - sand skeletal mix - Continously graded as defined (40mm thickness, (Medium Grade) using A-E2 modified binder maximum aggregate size 14.0mm) | D216: m2 | E216: 180.0
A218: J.11 | B218: SANS 1200 MK | C218: SECTION 11 : KERBING AND CHANNELING
A220: J.11.1 | B220: 8.2.2 | C220: Concrete kerbing and channeling combined as per Detail C on Dwg No. D34843.00C-123-01 | D220: m | E220: 200.0
A227: TOTAL SCHEDULE J CARRIED FORWARD TO SUMMARY:

Sheet K
C1: SCHEDULE K: SECOND CLASS WATER STORAGE TANK
A2: ITEM | B2: PAYMENT | C2: DESCRIPTION | D2: UNIT | E2: QTY | F2: RATE | G2: AMOUNT
A4: K.1 | B4: SANS 1200 D | C4: EARTHWORKS
A6: K.1.1 | B6: 8.3.1.1 | C6: Clear and Strip Site Elevated Tank Foundations | D6: m2 | E6: =6*6 -> 36.0
A8: K.1.2 | B8: 8.3.3 | C8: Restricted Excavation in all materials for tank platforms. Use for embankment or backfill or spread on site if excess. | D8: m3 | E8: =+E6*2 -> 72.0
A10: K.1.3 | C10: b) Extra-Over Item K.1.2 above for:
A12: K.1.3.1 | C12: 1) Intermediate Excavation (provisional) | D12: m3 | E12: 20.0
A14: K.1.3.2 | C14: 2) Hard Rock Excavation (provisional) | D14: m3 | E14: 5.0
A16: K.1.4 | B16: PSD 8.3.4 | C16: Import, Spread and Compact G5 Material to 95% MOD AASHTO, regardless of source | D16: m3 | E16: =ROUND(6*6*0.3,1) -> 10.8
A18: K.1.5 | B18: PSD 8.3.14 | C18: Rip, re-compact and test in-situ material to 93% MOD AASHTO | D18: m3 | E18: =ROUND(6*6*0.15,1) -> 5.4
A20: K.2 | B20: SANS 1200 G | C20: CONCRETE STRUCTURAL
A22: K.2.1 | B22: 8.2 | C22: Formwork
C24: Supply, erect, bind, handle and take down:
A26: K.2.1.1 | B26: 8.2.1 | C26: Rough Vertical Formwork for RC base | D26: m2 | E26: =+ROUND(6*0.5*4,1) -> 12.0
A28: K.2.1.2 | B28: 8.2.2 | C28: Smooth Vertical Formwork for RC Stub Columns | D28: m2 | E28: =+ROUND(1.2*0.6*4*4,1) -> 11.5
A30: K.2.2 | B30: 8.3 | C30: Reinforcement
C32: Supply, Handle, Bend, Cut and Fix:
A34: K.2.2.1 | B34: 8.3.1 | C34: High Tensile Steel Bars | D34: t | E34: =+ROUND((6*6*0.5*0.115)+(0.6*0.6*1.2*4*0.325),1) -> 2.6
A36: K.2.3 | B36: 8.4 | C36: Concrete
C38: Supply, mix, place, compact and test:
B40: 8.4.3 | C40: Strength Concrete:
A42: K.2.3.1 | C42: Class 30/19 MPa Concrete for RC Base Slab and Stub Columns | D42: m3 | E42: =+ROUND((6*6*0.5)+(0.6*0.6*1.2*4),1) -> 19.7
A44: K.2.3.2 | C44: Class 15/19 MPa Concrete for Blinding layer | D44: m3 | E44: =ROUND(6*6*0.05,1) -> 1.8
A49: TOTAL CARRIED FORWARD:
A50: TOTAL BROUGHT FORWARD:
A52: K.2.4 | B52: 8.4.4 | C52: Unformed Surface Finishes
A54: K.2.4.1 | C54: a) Wood-floated finish to top of stub columns | D54: m2 | E54: =+ROUND(0.6*0.6*4,1) -> 1.4
A56: K.2.4.2 | B56: 8.7 | C56: a) Grouting between baseplates and stub columns | D56: m3 | E56: 0.5
A58: K.3 | B58: SANS 1200 L | C58: MEDIUM PRESSURE PIPELINES
A60: K.3.1 | B60: PS.38 | C60: Elevated Sectional Steel Storage Tank
A62: K.3.1.1 | B62: PS.38.1 | C62: Supply, Install and Erect 32.7 kℓ Capacity Sectional Steel Tank (Epoxy-coated internally and hot dip galvanised externally) on 10m high galvanised tank stand C/W tank stand and base plate, walkway, internal and external cat ladders, holding down bolts, water level indicator, nozzle for float switch installation. | D62: Sum | E62: 1.0
A64: K.3.1.2 | B64: PS.38.4 | C64: Sterilisation of Tank | D64: Sum | E64: 1.0
A66: K.3.1.3 | B66: PS.38.5 | C66: Commissioning of Tank | D66: Sum | E66: 1.0
A68: K.3.2 | B68: 8.2.5 | C68: Supply and Place Pipes, Valves and Specials (Short Pipe Runs) for Elevated Tank Pipework:
C70: Note the following:
C72: (a) All stainless steel pipework to Gr 304 and to have minimum wall thickness of 6mm
C74: (b) All Flanges to be "Raised Face" to Table 1600/3 of SANS 1123
C76: (c) Nominal Pressure Rating = 16 bar
C78: (d) 3mm thick spiral wound ring gaskets ("Maxiflex" by Klinger or similar approved) to be used between all flanged connections
C80: Gr 304 Stainless Steel Pipe Lengths Flanged Both Ends for the following diameters and lengths:
A82: K.3.2.1 | C82: DN100 x 6000mm Long | D82: No. | E82: 4.0
A84: K.3.2.2 | C84: DN100 x 1000mm Long (Cut to Suit on Site) | D84: No. | E84: 4.0
A87: TOTAL CARRIED FORWARD:
A88: TOTAL BROUGHT FORWARD:
A90: K.3.2.3 | C90: DN80 x 6000mm Long | D90: No. | E90: 4.0
A92: K.3.2.4 | C92: DN80 x 1000mm Long (Cut to Suit on Site) | D92: No. | E92: 4.0
C94: Gr 304 Stainless Steel Medium Radius Bends (Flanged Both Ends) with the following diameters and dimensions:
A96: K.3.2.5 | C96: DN100 x 90 deg (R = 200mm, C/F = 260mm) | D96: No. | E96: 2.0
A98: K.3.2.6 | C98: DN100 x 45 deg (R = 200mm, C/F = 125mm) | D98: No. | E98: 2.0
A100: K.3.2.7 | C100: DN80 x 90 deg (R = 150mm, C/F = 220mm) | D100: No. | E100: 4.0
A102: K.3.2.8 | C102: DN80 x 45 deg (R = 150mm, C/F = 120mm) | D102: No. | E102: 4.0
A104: K.3.2.9 | C104: DN100 x DN80 x 75mm Long Gr 304 Stainless Steel Concentric Reducers (flanged both ends) for the following diameters and dimensions: | D104: No. | E104: 2.0
C106: Gr 304 Stainless Steel Tees (flanged all ends) for the following diameters and dimensions:
A108: K.3.2.10 | C108: DN80 x DN50 (C/F = 150mm) | D108: No. | E108: 1.0
A110: K.3.2.11 | C110: DN100 x DN80 (C/F = 180mm) | D110: No. | E110: 1.0
A112: K.3.2.12 | C112: Flanged DN80 Metal-Seated Wedge Gate Valve C/W Hand-Wheel | D112: No. | E112: 3.0
A114: K.3.2.13 | C114: DN110 Compression Flange Adaptor for HDPe Pipes (PN16) | D114: No. | E114: 2.0
A116: K.3.2.14 | C116: DN80 Flanged Equilibrium Float Valve (Model 7354 by Vosa or similar approved) | D116: No. | E116: 1.0
B118: PS.38.3 | C118: Flange Insulation Kit for Joining Stainless Steel to Galvanised Steel Pipe (dissimilar metals) including for G10 Glass Reinforced Epoxy bolt sleeves, washers gaskets and the like for the following diameters:
A120: K.3.2.15 | C120: DN100 | D120: No. | E120: 2.0
A122: K.3.2.16 | C122: DN80 | D122: No. | E122: 2.0
A128: TOTAL CARRIED FORWARD:
A129: TOTAL BROUGHT FORWARD:
A131: K.3.3 | B131: PSL 8.2.14 | C131: Construct typical stormwater chamber chamber to nominal depth of 2.0m below ground as per detail H on Drg D34843.00C-123-01 including for all clearance, excavation, formwork, concrete, reinforcement, backfilling and compaction, benching, precast concrete manhole rings, manhole cover and frame etc. | D131: Sum
A177: TOTAL SCHEDULE K CARRIED FORWARD TO SUMMARY:

Sheet SUMMARY
A1: SCHEDULE OF QUANTITIES SUMMARY
A5: SCHEDULE | B5: DESCRIPTION | C5: AMOUNT
A6: A | B6: Preliminary and General
A7: B | B7: New Inlet Works (Civil/Structural)
A8: C | B8: Primary Settling Tank Repairs & Alterations
A9: D | B9: Repairs to Biological Filter and Dosing Siphon
A10: E | B10: Repairs & Alterations to Sludge Digester
A11: F | B11: Upgrades to Disinfection Facilities
A12: G | B12: WWTW Pipelines and Manholes
A13: H | B13: Repairs, Alterations and Upgrades to emergency Overflow Ponds
A14: I | B14: Upstream Catchment Area Repairs
A15: J | B15: Earthworks, Stormwater Control & Flood Damages Restoration
A16: K | B16: Second Class Water Storage Tank
A17: Total Schedule of Quantities (A + B + C + D + E + F + G + H + I + J + K)
A19: Add 7.5% Contingencies
A21: Sub Total
A23: Add 15% Value Added Tax
A25: TOTAL CARRIED FORWARD TO FORM OF OFFER
